Department family,Entity,Date,Expense type,Expense area,Supplier,Transaction number,Amount,Description
MOJ,LAA,01/07/2020,Legal Aid Lower Crime,LEGAL AID FUND,GAMMON PIERCY & GAIGER LLP,1971787:155497632,"70,682.74",Legal Aid Lower Crime
MOJ,LAA,01/07/2020,Legal Aid Lower Crime,LEGAL AID FUND,THOMAS BOYD WHYTE SOLICITORS,1971790:155497353,"33,878.41",Legal Aid Lower Crime
MOJ,LAA,01/07/2020,Legal Aid Lower Crime,LEGAL AID FUND,DOBSONS,1971794:155496908,"42,000.00",Legal Aid Lower Crime
MOJ,LAA,01/07/2020,Legal Aid Civil Representation,LEGAL AID FUND,FITZHUGH GATES,1971809:3000002054760031,"26,623.04",Legal Aid Civil Representation
MOJ,LAA,01/07/2020,Legal Aid Legal Help,LEGAL AID FUND,BHATT MURPHY SOLICITORS,1971818:155496295,"32,770.87",Legal Aid Legal Help
MOJ,LAA,01/07/2020,Legal Aid Lower Crime,LEGAL AID FUND,SONN MACMILLAN WALKER LTD,1971822:155496898,"42,900.00",Legal Aid Lower Crime
MOJ,LAA,01/07/2020,Legal Aid Lower Crime,LEGAL AID FUND,MARTIN MURRAY & ASSOCIATES,1971825:155496911,"86,200.00",Legal Aid Lower Crime
MOJ,LAA,01/07/2020,Legal Aid Lower Crime,LEGAL AID FUND,MARTIN MURRAY & ASSOCIATES,1971826:155497057,"27,300.00",Legal Aid Lower Crime
MOJ,LAA,01/07/2020,Legal Aid Legal Help,LEGAL AID FUND,GLEDHILL GILL SOLICITORS,1971845:155496111,"30,686.36",Legal Aid Legal Help
MOJ,LAA,01/07/2020,Legal Aid Lower Crime,LEGAL AID FUND,RENSHAW DERRICK & CO,1971854:155497658,"30,120.71",Legal Aid Lower Crime
MOJ,LAA,01/07/2020,Legal Aid Lower Crime,LEGAL AID FUND,BLACKFORDS LLP,1971890:155497342,"26,062.57",Legal Aid Lower Crime
MOJ,LAA,01/07/2020,Legal Aid Legal Help,LEGAL AID FUND,HICKMAN & ROSE,1971899:155496290,"39,826.77",Legal Aid Legal Help
MOJ,LAA,01/07/2020,Legal Aid Lower Crime,LEGAL AID FUND,ASGHAR & CO SOLICITORS LTD,1971933:155497412,"34,570.49",Legal Aid Lower Crime
MOJ,LAA,01/07/2020,Legal Aid Legal Help,LEGAL AID FUND,SUTOVIC & HARTIGAN,1971934:155495999,"52,000.00",Legal Aid Legal Help
MOJ,LAA,01/07/2020,Legal Aid Lower Crime,LEGAL AID FUND,POWELL SPENCER AND PARTNERS,1971966:155496903,"33,000.00",Legal Aid Lower Crime
MOJ,LAA,01/07/2020,Legal Aid Higher Crime,LEGAL AID FUND,J D SPICER ZEB,1971967:155485669,"36,664.07",Legal Aid Higher Crime
MOJ,LAA,01/07/2020,Legal Aid Lower Crime,LEGAL AID FUND,J D SPICER ZEB,1971967:155497354,"31,966.28",Legal Aid Lower Crime
MOJ,LAA,01/07/2020,Legal Aid Lower Crime,LEGAL AID FUND,HODGE JONES & ALLEN SOLICITORS LTD,1971970:155497391,"52,273.02",Legal Aid Lower Crime
MOJ,LAA,01/07/2020,Legal Aid Legal Help,LEGAL AID FUND,HODGE JONES & ALLEN SOLICITORS LTD,1971970:155514871,"90,000.00",Legal Aid Legal Help
MOJ,LAA,01/07/2020,Legal Aid Lower Crime,LEGAL AID FUND,BOBBETTS MACKAN,1971990:155497679,"26,000.00",Legal Aid Lower Crime
MOJ,LAA,01/07/2020,Legal Aid Lower Crime,LEGAL AID FUND,ROSS SOLICITORS LTD,1972005:155497079,"33,300.00",Legal Aid Lower Crime
MOJ,LAA,01/07/2020,Legal Aid Legal Help,LEGAL AID FUND,CONFREYS,1972020:155496179,"37,320.84",Legal Aid Legal Help
MOJ,LAA,01/07/2020,Legal Aid Lower Crime,LEGAL AID FUND,GOMER WILLIAMS,1972021:155497181,"27,547.09",Legal Aid Lower Crime
MOJ,LAA,01/07/2020,Legal Aid Lower Crime,LEGAL AID FUND,DAVIES & JONES SOLICITORS,1972064:155496860,"25,500.00",Legal Aid Lower Crime
MOJ,LAA,01/07/2020,Legal Aid Civil Representation,LEGAL AID FUND,ANTHONY COLLINS LLP,1972069:3000003691460023,"32,930.95",Legal Aid Civil Representation
MOJ,LAA,01/07/2020,Legal Aid Civil Representation,LEGAL AID FUND,ANTHONY COLLINS LLP,1972069:3000004141720013,"48,620.80",Legal Aid Civil Representation
MOJ,LAA,01/07/2020,Legal Aid Legal Help,LEGAL AID FUND,BARNES HARRILD & DYER,1972080:155496278,"62,040.19",Legal Aid Legal Help
MOJ,LAA,01/07/2020,Legal Aid Civil Representation,LEGAL AID FUND,BRETHERTONS LLP,1972102:3000004000570032,"30,045.26",Legal Aid Civil Representation
MOJ,LAA,01/07/2020,Legal Aid Higher Crime,LEGAL AID FUND,RH LAW LLP,1972124:155486052,"66,246.48",Legal Aid Higher Crime
MOJ,LAA,01/07/2020,Legal Aid Lower Crime,LEGAL AID FUND,THOMPSON & CO SOLICITORS LTD,1972129:155496905,"34,900.00",Legal Aid Lower Crime
MOJ,LAA,01/07/2020,Legal Aid Legal Help,LEGAL AID FUND,FADIGA & CO LTD,1972130:155496273,"45,000.00",Legal Aid Legal Help
MOJ,LAA,01/07/2020,Legal Aid Civil Representation,LEGAL AID FUND,DONALD RACE & NEWTON SOLICITORS,1972131:3000003239650029,"31,681.23",Legal Aid Civil Representation
MOJ,LAA,01/07/2020,Legal Aid Lower Crime,LEGAL AID FUND,ROBERT LIZAR,1972136:155497603,"43,095.11",Legal Aid Lower Crime
MOJ,LAA,01/07/2020,Legal Aid Lower Crime,LEGAL AID FUND,STEVENS SOLICITORS,1972160:155497091,"29,600.00",Legal Aid Lower Crime
MOJ,LAA,01/07/2020,Legal Aid Lower Crime,LEGAL AID FUND,DE MAIDS SOLICITORS & ADVOCATES,1972186:155496861,"26,000.00",Legal Aid Lower Crime
MOJ,LAA,01/07/2020,Legal Aid Lower Crime,LEGAL AID FUND,GOODALL BARNETT JAMES SOLICITORS,1972205:155497040,"34,000.00",Legal Aid Lower Crime
MOJ,LAA,01/07/2020,Legal Aid Legal Help,LEGAL AID FUND,BURKE NIAZI  LTD,1972210:155514859,"92,000.00",Legal Aid Legal Help
MOJ,LAA,01/07/2020,Legal Aid Higher Crime,LEGAL AID FUND,JMW SOLICITORS LLP,1972217:155491624,"27,702.66",Legal Aid Higher Crime
MOJ,LAA,01/07/2020,Legal Aid Legal Help,LEGAL AID FUND,SOUTHERNS SOLICITORS LTD,1972236:155496347,"35,405.69",Legal Aid Legal Help
MOJ,LAA,01/07/2020,Legal Aid Lower Crime,LEGAL AID FUND,HORSMAN SOLICITORS LTD,1972238:155497615,"25,313.29",Legal Aid Lower Crime
MOJ,LAA,01/07/2020,Legal Aid Higher Crime,LEGAL AID FUND,HORSMAN SOLICITORS LTD,1972238:155516922,"25,064.39",Legal Aid Higher Crime
MOJ,LAA,01/07/2020,Legal Aid Lower Crime,LEGAL AID FUND,STUART MILLER SOLICITORS LTD,1972242:155497392,"56,099.29",Legal Aid Lower Crime
MOJ,LAA,01/07/2020,Legal Aid Lower Crime,LEGAL AID FUND,TUCKERS SOLICITORS LLP,1972244:155496928,"145,000.00",Legal Aid Lower Crime
MOJ,LAA,01/07/2020,Legal Aid Lower Crime,LEGAL AID FUND,TUCKERS SOLICITORS LLP,1972245:155497029,"155,000.00",Legal Aid Lower Crime
MOJ,LAA,01/07/2020,Legal Aid Higher Crime,LEGAL AID FUND,TUCKERS SOLICITORS LLP,1972245:155521892,"73,718.99",Legal Aid Higher Crime
MOJ,LAA,01/07/2020,Legal Aid Lower Crime,LEGAL AID FUND,WATSON WOODHOUSE LTD,1972249:155496949,"50,700.00",Legal Aid Lower Crime
MOJ,LAA,01/07/2020,Legal Aid Lower Crime,LEGAL AID FUND,WATSON WOODHOUSE LTD,1972251:155496951,"26,900.00",Legal Aid Lower Crime
MOJ,LAA,01/07/2020,Legal Aid Lower Crime,LEGAL AID FUND,YARWOOD & STUBLEY,1972252:155496950,"32,400.00",Legal Aid Lower Crime
MOJ,LAA,01/07/2020,Legal Aid Civil Representation,LEGAL AID FUND,MYRIA PIERI & CO,1972293:3000004885830014,"32,790.73",Legal Aid Civil Representation
MOJ,LAA,01/07/2020,Legal Aid Lower Crime,LEGAL AID FUND,HARRIS CUFFARO & NICHOLS,1972307:155496888,"53,100.00",Legal Aid Lower Crime
MOJ,LAA,01/07/2020,Legal Aid Legal Help,LEGAL AID FUND,T V EDWARDS LLP,1972310:155495992,"26,800.00",Legal Aid Legal Help
MOJ,LAA,01/07/2020,Legal Aid Lower Crime,LEGAL AID FUND,T V EDWARDS LLP,1972310:155496920,"45,000.00",Legal Aid Lower Crime
MOJ,LAA,01/07/2020,Legal Aid Lower Crime,LEGAL AID FUND,LANSBURY WORTHINGTON LTD,1972311:155496897,"35,000.00",Legal Aid Lower Crime
MOJ,LAA,01/07/2020,Legal Aid Lower Crime,LEGAL AID FUND,VCW LAW LTD,1972320:155496948,"46,000.00",Legal Aid Lower Crime
MOJ,LAA,01/07/2020,Legal Aid Lower Crime,LEGAL AID FUND,CARR & CO,1972378:155496987,"42,300.00",Legal Aid Lower Crime
MOJ,LAA,01/07/2020,Legal Aid Lower Crime,LEGAL AID FUND,WILLIAMSONS SOLICITORS LTD,1972385:155496995,"58,600.00",Legal Aid Lower Crime
MOJ,LAA,01/07/2020,Legal Aid Lower Crime,LEGAL AID FUND,BHATIA BEST LTD,1972419:155496865,"90,100.00",Legal Aid Lower Crime
MOJ,LAA,01/07/2020,Legal Aid Lower Crime,LEGAL AID FUND,BHATIA BEST LTD,1972420:155496866,"33,700.00",Legal Aid Lower Crime
MOJ,LAA,01/07/2020,Legal Aid Lower Crime,LEGAL AID FUND,BHATIA BEST LTD,1972421:155496868,"27,700.00",Legal Aid Lower Crime
MOJ,LAA,01/07/2020,Legal Aid Lower Crime,LEGAL AID FUND,NORRIE WAITE & SLATER,1972433:155496978,"44,900.00",Legal Aid Lower Crime
MOJ,LAA,01/07/2020,Legal Aid Lower Crime,LEGAL AID FUND,ALLEN HOOLE LTD,1972449:155497072,"43,100.00",Legal Aid Lower Crime
MOJ,LAA,01/07/2020,Legal Aid Lower Crime,LEGAL AID FUND,OXLEY & COWARD SOLICITORS LLP,1972465:155496975,"27,100.00",Legal Aid Lower Crime
MOJ,LAA,01/07/2020,Legal Aid Lower Crime,LEGAL AID FUND,HOWELLS LLP,1972471:155496976,"39,500.00",Legal Aid Lower Crime
MOJ,LAA,01/07/2020,Legal Aid Legal Help,LEGAL AID FUND,SIMPSON MILLAR SOLICITORS LLP,1972482:155496261,"26,664.14",Legal Aid Legal Help
MOJ,LAA,01/07/2020,Legal Aid Lower Crime,LEGAL AID FUND,LAWRENCE & CO SOLICITORS CDS LLP,1972498:155496929,"62,300.00",Legal Aid Lower Crime
MOJ,LAA,01/07/2020,Legal Aid Lower Crime,LEGAL AID FUND,THE JOHNSON PARTNERSHIP,1972511:155497227,"96,617.16",Legal Aid Lower Crime
MOJ,LAA,01/07/2020,Legal Aid Lower Crime,LEGAL AID FUND,VHS FLETCHERS,1972538:155497233,"33,549.47",Legal Aid Lower Crime
MOJ,LAA,01/07/2020,Legal Aid Lower Crime,LEGAL AID FUND,ROBERTSON'S SOLICITORS,1972563:155496984,"28,900.00",Legal Aid Lower Crime
MOJ,LAA,01/07/2020,Legal Aid Lower Crime,LEGAL AID FUND,METCALFE COPEMAN & PETTEFAR,1972590:155496894,"38,700.00",Legal Aid Lower Crime
MOJ,LAA,01/07/2020,Legal Aid Lower Crime,LEGAL AID FUND,CARTER OSBORNE LTD,1972595:155497229,"67,025.68",Legal Aid Lower Crime
MOJ,LAA,01/07/2020,Legal Aid Lower Crime,LEGAL AID FUND,RILEY HAYES & CO,1972608:155497119,"38,000.00",Legal Aid Lower Crime
MOJ,LAA,01/07/2020,Legal Aid Lower Crime,LEGAL AID FUND,PURCELL PARKER LTD,1972609:155497101,"90,000.00",Legal Aid Lower Crime
MOJ,LAA,01/07/2020,Legal Aid Higher Crime,LEGAL AID FUND,KEITH DYSON SOLICITORS LTD,1972614:155489272,"35,756.43",Legal Aid Higher Crime
MOJ,LAA,01/07/2020,Legal Aid Lower Crime,LEGAL AID FUND,DEVONALD GRIFFITHS JOHN,1972631:155496858,"45,000.00",Legal Aid Lower Crime
MOJ,LAA,01/07/2020,Legal Aid Civil Representation,LEGAL AID FUND,HATCH BRENNER LLP,1972650:3000003943010015,"28,300.33",Legal Aid Civil Representation
MOJ,LAA,01/07/2020,Legal Aid Lower Crime,LEGAL AID FUND,REEDS SOLICITORS LLP,1972669:155497650,"31,985.80",Legal Aid Lower Crime
MOJ,LAA,01/07/2020,Legal Aid Legal Help,LEGAL AID FUND,RMNJ SOLICITORS ***,1972677:155496253,"30,244.64",Legal Aid Legal Help
MOJ,LAA,01/07/2020,Legal Aid Lower Crime,LEGAL AID FUND,RMNJ SOLICITORS ***,1972677:155497432,"49,845.01",Legal Aid Lower Crime
MOJ,LAA,01/07/2020,Legal Aid Civil Representation,LEGAL AID FUND,CYGNET FAMILY LAW,1972684:3000004947090020,"30,078.99",Legal Aid Civil Representation
MOJ,LAA,01/07/2020,Legal Aid Legal Help,LEGAL AID FUND,ELDER RAHIMI LIMITED,1972695:155496000,"39,000.00",Legal Aid Legal Help
MOJ,LAA,01/07/2020,Legal Aid Lower Crime,LEGAL AID FUND,FORBES SOLICITORS,1972702:155497013,"50,000.00",Legal Aid Lower Crime
MOJ,LAA,01/07/2020,Legal Aid Legal Help,LEGAL AID FUND,SOUTHWARK LAW CENTRE,1972707:155496481,"27,567.87",Legal Aid Legal Help
MOJ,LAA,01/07/2020,Legal Aid Lower Crime,LEGAL AID FUND,FORBES SOLICITORS,1972709:155497015,"31,000.00",Legal Aid Lower Crime
MOJ,LAA,01/07/2020,Legal Aid Legal Help,LEGAL AID FUND,BINDMANS LLP,1972718:155496303,"27,027.91",Legal Aid Legal Help
MOJ,LAA,01/07/2020,Legal Aid Lower Crime,LEGAL AID FUND,BINDMANS LLP,1972718:155497394,"35,074.31",Legal Aid Lower Crime
MOJ,LAA,01/07/2020,Legal Aid Lower Crime,LEGAL AID FUND,BAL DHALIWAL SOLICITORS,1972731:155497308,"25,052.78",Legal Aid Lower Crime
MOJ,LAA,01/07/2020,Legal Aid Lower Crime,LEGAL AID FUND,NOBLE SOLICITORS,1972745:155497265,"25,979.07",Legal Aid Lower Crime
MOJ,LAA,01/07/2020,Legal Aid Lower Crime,LEGAL AID FUND,SHELLEY & CO,1972746:155497306,"43,216.20",Legal Aid Lower Crime
MOJ,LAA,01/07/2020,Legal Aid Legal Help,LEGAL AID FUND,WILSON SOLICITORS LLP,1972750:155496259,"45,224.74",Legal Aid Legal Help
MOJ,LAA,01/07/2020,Legal Aid Lower Crime,LEGAL AID FUND,DALTON HOLMES GRAY,1972781:155497402,"33,532.84",Legal Aid Lower Crime
MOJ,LAA,01/07/2020,Legal Aid Lower Crime,LEGAL AID FUND,T S LAW LTD,1972787:155496922,"28,000.00",Legal Aid Lower Crime
MOJ,LAA,01/07/2020,Legal Aid Lower Crime,LEGAL AID FUND,COBAINS SOLICITORS,1972794:155497025,"26,000.00",Legal Aid Lower Crime
MOJ,LAA,01/07/2020,Legal Aid Legal Help,LEGAL AID FUND,PETER EDWARDS LAW LTD,1972797:155495988,"41,200.00",Legal Aid Legal Help
MOJ,LAA,01/07/2020,Legal Aid Lower Crime,LEGAL AID FUND,NEEDHAM POULIER LTD,1972799:155497419,"40,087.39",Legal Aid Lower Crime
MOJ,LAA,01/07/2020,Legal Aid Legal Help,LEGAL AID FUND,NEEDHAM POULIER LTD,1972799:155514865,"91,000.00",Legal Aid Legal Help
MOJ,LAA,01/07/2020,Legal Aid Higher Crime,LEGAL AID FUND,MICHAEL CARROLL & CO,1972808:155478790,"26,938.75",Legal Aid Higher Crime
MOJ,LAA,01/07/2020,Legal Aid Higher Crime,LEGAL AID FUND,M & N SOLICITORS,1972816:155485484,"68,235.08",Legal Aid Higher Crime
MOJ,LAA,01/07/2020,Legal Aid Legal Help,LEGAL AID FUND,LUQMANI THOMPSON & PARTNERS,1972839:155496263,"28,092.66",Legal Aid Legal Help
MOJ,LAA,01/07/2020,Legal Aid Lower Crime,LEGAL AID FUND,BAILEY NICHOLSON GRAYSON,1972849:155496900,"40,000.00",Legal Aid Lower Crime
MOJ,LAA,01/07/2020,Legal Aid Lower Crime,LEGAL AID FUND,SHAW GRAHAM KERSH,1972856:155496930,"34,000.00",Legal Aid Lower Crime
MOJ,LAA,01/07/2020,Legal Aid Legal Help,LEGAL AID FUND,DUNCAN LEWIS SOLICITORS  LTD,1972880:155514776,"98,000.00",Legal Aid Legal Help
MOJ,LAA,01/07/2020,Legal Aid Legal Help,LEGAL AID FUND,DUNCAN LEWIS SOLICITORS  LTD,1972880:155514777,"97,000.00",Legal Aid Legal Help
MOJ,LAA,01/07/2020,Legal Aid Legal Help,LEGAL AID FUND,DUNCAN LEWIS SOLICITORS  LTD,1972880:155514778,"96,000.00",Legal Aid Legal Help
MOJ,LAA,01/07/2020,Legal Aid Legal Help,LEGAL AID FUND,DUNCAN LEWIS SOLICITORS  LTD,1972880:155514779,"95,000.00",Legal Aid Legal Help
MOJ,LAA,01/07/2020,Legal Aid Lower Crime,LEGAL AID FUND,DUNCAN LEWIS SOLICITORS  LTD,1972881:155496919,"96,600.00",Legal Aid Lower Crime
MOJ,LAA,01/07/2020,Legal Aid Legal Help,LEGAL AID FUND,DUNCAN LEWIS SOLICITORS  LTD,1972881:155514856,"94,000.00",Legal Aid Legal Help
MOJ,LAA,01/07/2020,Legal Aid Legal Help,LEGAL AID FUND,DUNCAN LEWIS SOLICITORS  LTD,1972881:155514857,"93,000.00",Legal Aid Legal Help
MOJ,LAA,01/07/2020,Legal Aid Legal Help,LEGAL AID FUND,DUNCAN LEWIS SOLICITORS  LTD,1972881:155514858,"81,400.00",Legal Aid Legal Help
MOJ,LAA,01/07/2020,Legal Aid Legal Help,LEGAL AID FUND,SWAIN & CO SOLICITORS,1972908:155496049,"25,000.00",Legal Aid Legal Help
MOJ,LAA,01/07/2020,Legal Aid Lower Crime,LEGAL AID FUND,SWAIN & CO SOLICITORS,1972909:155497052,"100,000.00",Legal Aid Lower Crime
MOJ,LAA,01/07/2020,Legal Aid Civil Representation,LEGAL AID FUND,CREIGHTON & PARTNERS SOLICITORS LTD,1972911:3000004364880015,"27,815.83",Legal Aid Civil Representation
MOJ,LAA,01/07/2020,Legal Aid Legal Help,LEGAL AID FUND,OXFORD LAW GROUP LTD,1972920:155496054,"42,000.00",Legal Aid Legal Help
MOJ,LAA,01/07/2020,Legal Aid Legal Help,LEGAL AID FUND,CARTWRIGHT KING LTD,1972921:155496420,"51,919.45",Legal Aid Legal Help
MOJ,LAA,01/07/2020,Legal Aid Lower Crime,LEGAL AID FUND,LLOYDS PR SOLICITORS,1972930:155497256,"38,836.52",Legal Aid Lower Crime
MOJ,LAA,01/07/2020,Legal Aid Lower Crime,LEGAL AID FUND,VYMAN SOLICITORS LTD,1972932:155497608,"26,908.70",Legal Aid Lower Crime
MOJ,LAA,01/07/2020,Legal Aid Legal Help,LEGAL AID FUND,CENTRAL ENGLAND LAW CENTRE LTD,1972955:155496095,"29,969.55",Legal Aid Legal Help
MOJ,LAA,01/07/2020,Legal Aid Legal Help,LEGAL AID FUND,TURPIN & MILLER LLP,1972963:155496448,"52,901.75",Legal Aid Legal Help
MOJ,LAA,01/07/2020,Legal Aid Lower Crime,LEGAL AID FUND,USMANI KING LTD,1972964:155497266,"42,404.44",Legal Aid Lower Crime
MOJ,LAA,01/07/2020,Legal Aid Lower Crime,LEGAL AID FUND,SHEPPARDS SOLICITORS LTD,1972970:155497080,"27,700.00",Legal Aid Lower Crime
MOJ,LAA,01/07/2020,Legal Aid Lower Crime,LEGAL AID FUND,HOWARD & BYRNE SOLICITORS,1972982:155496986,"50,000.00",Legal Aid Lower Crime
MOJ,LAA,01/07/2020,Legal Aid Lower Crime,LEGAL AID FUND,WAINWRIGHT & CUMMINS LLP,1972988:155496937,"30,000.00",Legal Aid Lower Crime
MOJ,LAA,01/07/2020,Legal Aid Lower Crime,LEGAL AID FUND,I B B SOLICITORS,1972989:155496912,"69,800.00",Legal Aid Lower Crime
MOJ,LAA,01/07/2020,Legal Aid Lower Crime,LEGAL AID FUND,OBW PERERA LTD,1973005:155496893,"29,000.00",Legal Aid Lower Crime
MOJ,LAA,01/07/2020,Legal Aid Lower Crime,LEGAL AID FUND,ALBIN & CO LTD,1973008:155497648,"27,238.48",Legal Aid Lower Crime
MOJ,LAA,01/07/2020,Legal Aid Lower Crime,LEGAL AID FUND,PHILIP & ROBERT HOWARD,1973012:155497482,"33,518.81",Legal Aid Lower Crime
MOJ,LAA,01/07/2020,Legal Aid Legal Help,LEGAL AID FUND,MENTAL HEALTH LEGAL REPRESENTATION LTD,1973020:155496404,"26,402.20",Legal Aid Legal Help
MOJ,LAA,01/07/2020,Legal Aid Legal Help,LEGAL AID FUND,PARAGON LAW LTD,1973021:155496044,"60,000.00",Legal Aid Legal Help
MOJ,LAA,01/07/2020,Legal Aid Lower Crime,LEGAL AID FUND,JOHN DELANEY & CO SOLICITORS,1973032:155496994,"33,000.00",Legal Aid Lower Crime
MOJ,LAA,01/07/2020,Legal Aid Legal Help,LEGAL AID FUND,THALIWAL & VEJA SOLICITORS,1973043:155496402,"27,115.52",Legal Aid Legal Help
MOJ,LAA,01/07/2020,Legal Aid Lower Crime,LEGAL AID FUND,ABR SOLICITORS,1973047:155497527,"43,538.69",Legal Aid Lower Crime
MOJ,LAA,01/07/2020,Legal Aid Legal Help,LEGAL AID FUND,DAVID GRAY LLP,1973053:155496385,"32,795.96",Legal Aid Legal Help
MOJ,LAA,01/07/2020,Legal Aid Civil Representation,LEGAL AID FUND,MCKENZIES SOLICITORS,1973056:3000004021120058,"32,656.88",Legal Aid Civil Representation
MOJ,LAA,01/07/2020,Legal Aid Lower Crime,LEGAL AID FUND,GWB HARTHILLS LLP,1973059:155497500,"25,879.03",Legal Aid Lower Crime
MOJ,LAA,01/07/2020,Legal Aid Lower Crime,LEGAL AID FUND,SMITH PARTNERSHIP,1973065:155496879,"25,300.00",Legal Aid Lower Crime
MOJ,LAA,01/07/2020,Legal Aid Lower Crime,LEGAL AID FUND,BIRDS SOLICITORS LTD,1973074:155496906,"140,200.00",Legal Aid Lower Crime
MOJ,LAA,01/07/2020,Legal Aid Civil Representation,LEGAL AID FUND,ALSTERS KELLEY SOLICITORS LTD,1973089:3000003019520028,"25,168.95",Legal Aid Civil Representation
MOJ,LAA,01/07/2020,Legal Aid Lower Crime,LEGAL AID FUND,LHD SOLICITORS LTD,1973091:155497002,"32,000.00",Legal Aid Lower Crime
MOJ,LAA,01/07/2020,Legal Aid Lower Crime,LEGAL AID FUND,G T STEWART LTD,1973092:155497408,"60,488.23",Legal Aid Lower Crime
MOJ,LAA,01/07/2020,Legal Aid Legal Help,LEGAL AID FUND,ARKRIGHTS SOLICITORS,1973099:155496155,"33,664.59",Legal Aid Legal Help
MOJ,LAA,01/07/2020,Legal Aid Lower Crime,LEGAL AID FUND,ROSE & DUNN,1973107:155497538,"27,993.69",Legal Aid Lower Crime
MOJ,LAA,01/07/2020,Legal Aid Lower Crime,LEGAL AID FUND,EBR ATTRIDGE LLP,1973110:155497332,"40,126.42",Legal Aid Lower Crime
MOJ,LAA,01/07/2020,Legal Aid Lower Crime,LEGAL AID FUND,EBR ATTRIDGE LLP,1973111:155497334,"40,569.75",Legal Aid Lower Crime
MOJ,LAA,01/07/2020,Legal Aid Lower Crime,LEGAL AID FUND,ABV SOLICITORS,1973137:155496914,"65,000.00",Legal Aid Lower Crime
MOJ,LAA,01/07/2020,Legal Aid Legal Help,LEGAL AID FUND,BUTLER & CO,1973156:155496130,"28,312.28",Legal Aid Legal Help
MOJ,LAA,01/07/2020,Legal Aid Lower Crime,LEGAL AID FUND,CRIMINAL DEFENCE SOLICITORS,1973166:155496931,"31,900.00",Legal Aid Lower Crime
MOJ,LAA,01/07/2020,Legal Aid Legal Help,LEGAL AID FUND,GUILE NICHOLAS-INC DONALD GALBRAITH & CO,1973183:155495998,"90,000.00",Legal Aid Legal Help
MOJ,LAA,01/07/2020,Legal Aid Legal Help,LEGAL AID FUND,FOUNTAIN SOLICITORS LTD,1973185:155514774,"99,000.00",Legal Aid Legal Help
MOJ,LAA,01/07/2020,Legal Aid Legal Help,LEGAL AID FUND,TRP SOLICITORS LTD,1973191:155496094,"80,768.87",Legal Aid Legal Help
MOJ,LAA,01/07/2020,Legal Aid Lower Crime,LEGAL AID FUND,HENNESSY & HAMMUDI,1973210:155497062,"35,000.00",Legal Aid Lower Crime
MOJ,LAA,01/07/2020,Legal Aid Lower Crime,LEGAL AID FUND,CARRINGTONS SOLICITORS,1973230:155497234,"140,958.10",Legal Aid Lower Crime
MOJ,LAA,01/07/2020,Legal Aid Legal Help,LEGAL AID FUND,DONOVAN NEWTON SOLICITORS,1973255:155496403,"50,549.71",Legal Aid Legal Help
MOJ,LAA,01/07/2020,Legal Aid Lower Crime,LEGAL AID FUND,WELLS BURCOMBE LLP,1973267:155497260,"46,659.25",Legal Aid Lower Crime
MOJ,LAA,01/07/2020,Legal Aid Lower Crime,LEGAL AID FUND,PEPPERELLS SOLICITORS,1973273:155497788,"26,318.37",Legal Aid Lower Crime
MOJ,LAA,01/07/2020,Legal Aid Lower Crime,LEGAL AID FUND,SANSBURY DOUGLAS,1973274:155497125,"53,000.00",Legal Aid Lower Crime
MOJ,LAA,01/07/2020,Legal Aid Lower Crime,LEGAL AID FUND,OSLERS SOLICITORS,1973279:155497291,"25,037.60",Legal Aid Lower Crime
MOJ,LAA,01/07/2020,Legal Aid Lower Crime,LEGAL AID FUND,CRIMINAL DEFENCE MILTON KEYNES LTD,1973286:155497054,"28,000.00",Legal Aid Lower Crime
MOJ,LAA,01/07/2020,Legal Aid Civil Representation,LEGAL AID FUND,PARDOES SOLICITORS LLP,1973293:3000003439020018,"45,487.24",Legal Aid Civil Representation
MOJ,LAA,01/07/2020,Legal Aid Lower Crime,LEGAL AID FUND,WESSEX SOLICITORS CHAMBERS,1973304:155497123,"59,000.00",Legal Aid Lower Crime
MOJ,LAA,01/07/2020,Legal Aid Legal Help,LEGAL AID FUND,LAWANA & CO,1973314:155513207,"34,642.01",Legal Aid Legal Help
MOJ,LAA,01/07/2020,Legal Aid Legal Help,LEGAL AID FUND,CORAM CHILDREN'S LEGAL CENTRE,1973323:155496456,"30,141.17",Legal Aid Legal Help
MOJ,LAA,01/07/2020,Legal Aid Lower Crime,LEGAL AID FUND,REEVES  & CO SOLICITORS,1973334:155497614,"26,107.93",Legal Aid Lower Crime
MOJ,LAA,01/07/2020,Legal Aid Higher Crime,LEGAL AID FUND,LLOYDS PR SOLICITORS,1973351:155478706,"52,704.13",Legal Aid Higher Crime
MOJ,LAA,01/07/2020,Legal Aid Lower Crime,LEGAL AID FUND,LLOYDS PR SOLICITORS,1973351:155497261,"30,535.18",Legal Aid Lower Crime
MOJ,LAA,01/07/2020,Legal Aid Civil Representation,LEGAL AID FUND,GWB HARTHILLS LLP,1973354:3000004256020024,"34,383.90",Legal Aid Civil Representation
MOJ,LAA,01/07/2020,Legal Aid Lower Crime,LEGAL AID FUND,SUSSEX DEFENCE SOLICITORS,1973358:155497129,"26,500.00",Legal Aid Lower Crime
MOJ,LAA,01/07/2020,Legal Aid Lower Crime,LEGAL AID FUND,LAWTONS SOLICITORS LTD,1973365:155497128,"35,500.00",Legal Aid Lower Crime
MOJ,LAA,01/07/2020,Legal Aid Lower Crime,LEGAL AID FUND,NOBLE SOLICITORS,1973371:155497789,"57,145.03",Legal Aid Lower Crime
MOJ,LAA,01/07/2020,Legal Aid Lower Crime,LEGAL AID FUND,WANNOPS LLP,1973372:155497897,"31,273.06",Legal Aid Lower Crime
MOJ,LAA,01/07/2020,Legal Aid Lower Crime,LEGAL AID FUND,M K LAW SOLICITORS LTD,1973373:155497834,"40,000.00",Legal Aid Lower Crime
MOJ,LAA,01/07/2020,Legal Aid Lower Crime,LEGAL AID FUND,OLD BAILEY SOLICITORS LTD,1973391:155497823,"31,524.62",Legal Aid Lower Crime
MOJ,LAA,01/07/2020,Legal Aid Higher Crime,LEGAL AID FUND,ASHCOTT SOLICITORS LTD,1973401:155486014,"93,923.55",Legal Aid Higher Crime
MOJ,LAA,01/07/2020,Legal Aid Lower Crime,LEGAL AID FUND,G T STEWART LTD,1973425:155497822,"34,631.96",Legal Aid Lower Crime
MOJ,LAA,01/07/2020,Legal Aid Lower Crime,LEGAL AID FUND,LINCOLNS SOLICITORS,1973432:155497852,"25,528.23",Legal Aid Lower Crime
MOJ,LAA,01/07/2020,Legal Aid Lower Crime,LEGAL AID FUND,H P GOWER SOLICITORS,1973455:155497861,"34,105.11",Legal Aid Lower Crime
MOJ,LAA,01/07/2020,Legal Aid Civil Representation,LEGAL AID FUND,NATIONAL FAMILY MEDIATION,1973465:155498327,"26,679.60",Legal Aid Civil Representation
MOJ,LAA,01/07/2020,Legal Aid Legal Help,LEGAL AID FUND,IRIS LAW SOLICITORS,1973474:155496539,"36,352.50",Legal Aid Legal Help
MOJ,LAA,01/07/2020,Legal Aid Legal Help,LEGAL AID FUND,DUNCAN LEWIS SOLICITORS  LTD,1973482:155496524,"63,985.89",Legal Aid Legal Help
MOJ,LAA,01/07/2020,Legal Aid Higher Crime,LEGAL AID FUND,AVISONS LAW LTD,1973507:155491678,"105,857.75",Legal Aid Higher Crime
MOJ,LAA,01/07/2020,Legal Aid Lower Crime,LEGAL AID FUND,HGH CRIMINAL DEFENCE SOLICITORS,1973511:155497813,"27,581.54",Legal Aid Lower Crime
MOJ,LAA,01/07/2020,Legal Aid Higher Crime,LEGAL AID FUND,MONTAGUE SOLICITORS LTD,1973522:155479125,"66,671.12",Legal Aid Higher Crime
MOJ,LAA,01/07/2020,Legal Aid Lower Crime,LEGAL AID FUND,WELLS BURCOMBE LLP,1973532:155497835,"77,996.91",Legal Aid Lower Crime
MOJ,LAA,01/07/2020,Legal Aid Lower Crime,LEGAL AID FUND,K LEGAL SOLICITORS,1973536:155497875,"26,553.44",Legal Aid Lower Crime
MOJ,LAA,01/07/2020,Legal Aid Lower Crime,LEGAL AID FUND,KESAR & CO SOLICITORS,1973542:155497877,"36,249.38",Legal Aid Lower Crime
MOJ,LAA,01/07/2020,Legal Aid Legal Help,LEGAL AID FUND,WIMBLEDON SOLICITORS,1973546:155496555,"36,025.72",Legal Aid Legal Help
MOJ,LAA,01/07/2020,Legal Aid Legal Help,LEGAL AID FUND,LEI DAT & BAIG SOLICITORS LTD,1973564:155496541,"38,248.72",Legal Aid Legal Help
MOJ,LAA,01/07/2020,Legal Aid Higher Crime,LEGAL AID FUND,JOHN S CAMMEGH,1973577:155479471,"35,412.00",Legal Aid Higher Crime
MOJ,LAA,01/07/2020,Legal Aid Civil Representation,LEGAL AID FUND,JUSTINE A LATTIMER,1973606:3000005338220023,"25,322.16",Legal Aid Civil Representation
MOJ,LAA,01/07/2020,Legal Aid Civil Representation,LEGAL AID FUND,JAMES H H TILLYARD QC,1973838:3000003003900027,"29,503.72",Legal Aid Civil Representation
MOJ,LAA,01/07/2020,Legal Aid Civil Representation,LEGAL AID FUND,JANE H HAYFORD,1973876:3000005570880017,"58,783.24",Legal Aid Civil Representation
MOJ,LAA,01/07/2020,Legal Aid Civil Representation,LEGAL AID FUND,FIONA C BARUAH,1974018:3000003943010014,"26,897.87",Legal Aid Civil Representation
MOJ,LAA,01/07/2020,Legal Aid Higher Crime,LEGAL AID FUND,JONATHAN ROGERS,1974046:155491416,"26,718.00",Legal Aid Higher Crime
MOJ,LAA,01/07/2020,Legal Aid Lower Crime,LEGAL AID FUND,BEN L COOPER,1974163:155481769,"41,852.80",Legal Aid Lower Crime
MOJ,LAA,01/07/2020,Legal Aid Higher Crime,LEGAL AID FUND,RAANA SHEIKH,1974219:155516732,"47,820.00",Legal Aid Higher Crime
MOJ,LAA,01/07/2020,Legal Aid Civil Representation,LEGAL AID FUND,PAUL M STOREY QC,1974235:3000004141720015,"37,422.00",Legal Aid Civil Representation
MOJ,LAA,01/07/2020,Legal Aid Civil Representation,LEGAL AID FUND,YOLANDA E SOLARI,1974305:3000004672730023,"33,550.20",Legal Aid Civil Representation
MOJ,LAA,01/07/2020,Legal Aid Civil Representation,LEGAL AID FUND,KATE V BRANIGAN QC,1974355:3000004792050012,"37,422.00",Legal Aid Civil Representation
MOJ,LAA,01/07/2020,Legal Aid Legal Help,LEGAL AID FUND,TAYLOR HALDANE BARLEX LLP,1974404:155496725,"39,057.51",Legal Aid Legal Help
MOJ,LAA,01/07/2020,Legal Aid Higher Crime,LEGAL AID FUND,G T STEWART LTD-ADVOCATE,1974448:155478983,"26,112.00",Legal Aid Higher Crime
MOJ,LAA,01/07/2020,Legal Aid Higher Crime,LEGAL AID FUND,G T STEWART LTD-ADVOCATE,1974448:155485317,"39,168.00",Legal Aid Higher Crime
MOJ,LAA,01/07/2020,Legal Aid Legal Help,LEGAL AID FUND,G T STEWART LTD,1974506:155496566,"38,662.90",Legal Aid Legal Help
MOJ,LAA,01/07/2020,Legal Aid Lower Crime,LEGAL AID FUND,M K LAW SOLICITORS LTD,1974518:155498005,"28,500.00",Legal Aid Lower Crime
MOJ,LAA,01/07/2020,Legal Aid Lower Crime,LEGAL AID FUND,CONNOR ROSS-BROWN SOLICITORS,1974526:155497135,"35,000.00",Legal Aid Lower Crime
MOJ,LAA,01/07/2020,Legal Aid Legal Help,LEGAL AID FUND,JACKSON LEES GROUP LTD,1974538:155496675,"45,678.92",Legal Aid Legal Help
MOJ,LAA,01/07/2020,Legal Aid Lower Crime,LEGAL AID FUND,JACKSON LEES GROUP LTD,1974538:155497910,"43,262.08",Legal Aid Lower Crime
MOJ,LAA,01/07/2020,Legal Aid Lower Crime,LEGAL AID FUND,T S LAW LTD,1974568:155497133,"31,900.00",Legal Aid Lower Crime
MOJ,LAA,01/07/2020,Legal Aid Civil Representation,LEGAL AID FUND,RICHARD J BARTON,1974666:3000003338320024,"27,248.64",Legal Aid Civil Representation
MOJ,LAA,01/07/2020,Legal Aid Legal Help,LEGAL AID FUND,WILSON SOLICITORS LLP,1974777:155496656,"30,516.58",Legal Aid Legal Help
MOJ,LAA,01/07/2020,Legal Aid Legal Help,LEGAL AID FUND,BARNES HARRILD & DYER,1974828:155496604,"35,121.58",Legal Aid Legal Help
MOJ,LAA,01/07/2020,Legal Aid Lower Crime,LEGAL AID FUND,ALEXANDER BENNETT,1974861:155497138,"25,400.00",Legal Aid Lower Crime
MOJ,LAA,01/07/2020,Legal Aid Legal Help,LEGAL AID FUND,BISON SOLICITORS LTD,1974869:155514884,"89,000.00",Legal Aid Legal Help
MOJ,LAA,01/07/2020,Legal Aid Lower Crime,LEGAL AID FUND,TUCKERS SOLICITORS LLP,1974893:155497136,"40,000.00",Legal Aid Lower Crime
MOJ,LAA,01/07/2020,Legal Aid Legal Help,LEGAL AID FUND,LEGAL JUSTICE SOLICITORS,1974917:155496632,"35,943.39",Legal Aid Legal Help
MOJ,LAA,01/07/2020,Legal Aid Legal Help,LEGAL AID FUND,DUNCAN LEWIS SOLICITORS  LTD,1974952:155496062,"59,300.00",Legal Aid Legal Help
MOJ,LAA,01/07/2020,Legal Aid Lower Crime,LEGAL AID FUND,INSTALAW,1974966:155497978,"79,345.50",Legal Aid Lower Crime
MOJ,LAA,01/07/2020,Legal Aid Lower Crime,LEGAL AID FUND,JSP LAW LTD,1974969:155497944,"25,120.70",Legal Aid Lower Crime
MOJ,LAA,01/07/2020,Legal Aid Legal Help,LEGAL AID FUND,ABBOTSTONE LAW LLP,1975005:155496694,"49,652.25",Legal Aid Legal Help
MOJ,LAA,01/07/2020,Legal Aid Legal Help,LEGAL AID FUND,APPLEMAN LEGAL,1975009:155496697,"51,381.73",Legal Aid Legal Help
MOJ,LAA,01/07/2020,Legal Aid Lower Crime,LEGAL AID FUND,REECE THOMAS WATSON LTD,1975065:155497981,"40,939.10",Legal Aid Lower Crime
MOJ,LAA,01/07/2020,Legal Aid Lower Crime,LEGAL AID FUND,C S SOLICITORS,1975084:155497151,"28,300.00",Legal Aid Lower Crime
MOJ,LAA,01/07/2020,Legal Aid Legal Help,LEGAL AID FUND,JOHN BLACK SOLICITORS LTD,1975179:155496729,"33,862.90",Legal Aid Legal Help
MOJ,LAA,01/07/2020,Legal Aid Higher Crime,LEGAL AID FUND,FARLEYS SOLICITORS LLP,1975235:155517373,"56,962.40",Legal Aid Higher Crime
MOJ,LAA,01/07/2020,Legal Aid Lower Crime,LEGAL AID FUND,PURE LAW CRIMINAL DEFENCE,1975240:155498026,"28,107.65",Legal Aid Lower Crime
MOJ,LAA,01/07/2020,Legal Aid Lower Crime,LEGAL AID FUND,JERMAN SAMUELS & PEARSON LLP,1975269:155497141,"65,000.00",Legal Aid Lower Crime
MOJ,LAA,01/07/2020,Legal Aid Higher Crime,LEGAL AID FUND,DASILVA SOLICITORS,1975277:155517262,"48,497.84",Legal Aid Higher Crime
MOJ,LAA,01/07/2020,Legal Aid Lower Crime,LEGAL AID FUND,HINE SOLICITORS,1975293:155498082,"28,785.52",Legal Aid Lower Crime
MOJ,LAA,01/07/2020,Legal Aid Higher Crime,LEGAL AID FUND,MAYFAIR SOLICITORS,1975295:155502363,"89,975.11",Legal Aid Higher Crime
MOJ,LAA,01/07/2020,Legal Aid Lower Crime,LEGAL AID FUND,MW SOLICITORS,1975319:155498105,"67,346.53",Legal Aid Lower Crime
MOJ,LAA,01/07/2020,Legal Aid Lower Crime,LEGAL AID FUND,J D SOLICITORS,1975329:155498111,"36,757.19",Legal Aid Lower Crime
MOJ,LAA,01/07/2020,Legal Aid Lower Crime,LEGAL AID FUND,LANGFIELD LAW LTD,1975360:155515405,"58,066.17",Legal Aid Lower Crime
MOJ,LAA,01/07/2020,Legal Aid Lower Crime,LEGAL AID FUND,REEDS SOLICITORS LLP,1975391:155498160,"67,485.72",Legal Aid Lower Crime
MOJ,LAA,01/07/2020,Legal Aid Lower Crime,LEGAL AID FUND,REEDS SOLICITORS LLP,1975395:155498164,"26,736.22",Legal Aid Lower Crime
MOJ,LAA,01/07/2020,Legal Aid Lower Crime,LEGAL AID FUND,GRAHAM & CO SOLICITORS LTD,1975419:155498182,"42,719.08",Legal Aid Lower Crime
MOJ,LAA,01/07/2020,Legal Aid Lower Crime,LEGAL AID FUND,G T STEWART LTD,1975422:155498185,"35,187.43",Legal Aid Lower Crime
MOJ,LAA,01/07/2020,Legal Aid Civil Representation,LEGAL AID FUND,JENNIFER A SMITH,1975435:3000003439020017,"27,665.57",Legal Aid Civil Representation
MOJ,LAA,01/07/2020,Legal Aid Legal Help,LEGAL AID FUND,HAMPSHIRE LAW,1975519:155496717,"25,198.62",Legal Aid Legal Help
MOJ,LAA,01/07/2020,Legal Aid Legal Help,LEGAL AID FUND,BISON SOLICITORS LTD,1975543:155496744,"34,470.47",Legal Aid Legal Help
MOJ,LAA,01/07/2020,Legal Aid Legal Help,LEGAL AID FUND,BISON SOLICITORS LTD,1975544:155496745,"33,695.99",Legal Aid Legal Help
MOJ,LAA,01/07/2020,Legal Aid Legal Help,LEGAL AID FUND,OLIVER & HASANI SOLICITORS,1975607:155496813,"26,067.16",Legal Aid Legal Help
MOJ,LAA,01/07/2020,Legal Aid Legal Help,LEGAL AID FUND,FOUNTAIN SOLICITORS LTD,1975612:155496739,"28,804.27",Legal Aid Legal Help
MOJ,LAA,01/07/2020,Legal Aid Legal Help,LEGAL AID FUND,REDMNS SOLICITORS,1975665:155496753,"27,611.76",Legal Aid Legal Help
MOJ,LAA,01/07/2020,Legal Aid Legal Help,LEGAL AID FUND,STAR LEGAL LTD,1975843:155496839,"28,478.22",Legal Aid Legal Help
MOJ,LAA,01/07/2020,Legal Aid Lower Crime,LEGAL AID FUND,HINDUJA GLOBAL SOLUTIONS UK LTD,1975848:155481008,"26,400.00",Legal Aid Lower Crime
MOJ,LAA,01/07/2020,Legal Aid Lower Crime,LEGAL AID FUND,HINDUJA GLOBAL SOLUTIONS UK LTD,1975848:155481009,"25,800.00",Legal Aid Lower Crime
MOJ,LAA,01/07/2020,Legal Aid Lower Crime,LEGAL AID FUND,HINDUJA GLOBAL SOLUTIONS UK LTD,1975848:155488033,"265,867.63",Legal Aid Lower Crime
MOJ,LAA,01/07/2020,Legal Aid Lower Crime,LEGAL AID FUND,HINDUJA GLOBAL SOLUTIONS UK LTD,1975848:155488341,"25,800.00",Legal Aid Lower Crime
MOJ,LAA,03/07/2020,EXP - PURCHASE OF GOODS/SERVICES - SUPPORT - APPLICATION MAINTENANCE AND SUPPORT,Civil Case Management - Newcastle,NORTHGATE PUBLIC SERVICES (UK) LTD,91435895,"95,220.00",Information technology costs
MOJ,LAA,08/07/2020,EXP - RENTALS UNDER NON-PFI OPERATING LEASES - BUILDINGS,Property Costs - Nottingham,NOTTINGHAM CITY COUNCIL,LAA-SOP1-EXI-10674,"46,599.00",Rental under operating leases-Buildings
MOJ,LAA,08/07/2020,Legal Aid Civil Representation,LEGAL AID FUND,ROBINSON ALLFREE,1975998:3000003263810018,"25,117.44",Legal Aid Civil Representation
MOJ,LAA,08/07/2020,Legal Aid Higher Crime,LEGAL AID FUND,WOOLLCOMBE YONGE LLP,1976092:155530965,"29,664.55",Legal Aid Higher Crime
MOJ,LAA,08/07/2020,Legal Aid Civil Representation,LEGAL AID FUND,POWELL SPENCER AND PARTNERS,1976159:3000004798560016,"39,654.83",Legal Aid Civil Representation
MOJ,LAA,08/07/2020,Legal Aid Civil Representation,LEGAL AID FUND,POND MARSH,1976259:3000003481430027,"29,483.78",Legal Aid Civil Representation
MOJ,LAA,08/07/2020,Legal Aid Higher Crime,LEGAL AID FUND,JMW SOLICITORS LLP,1976260:155537563,"29,664.55",Legal Aid Higher Crime
MOJ,LAA,08/07/2020,Legal Aid Civil Representation,LEGAL AID FUND,STEPHENSONS SOLICITORS LLP,1976265:3000003905220013,"93,006.32",Legal Aid Civil Representation
MOJ,LAA,08/07/2020,Legal Aid Civil Representation,LEGAL AID FUND,FORRESTERS SOLICITORS LIMITED,1976273:3000002375620015,"27,034.88",Legal Aid Civil Representation
MOJ,LAA,08/07/2020,Legal Aid Higher Crime,LEGAL AID FUND,BARK & CO,1976328:155523837,"111,795.60",Legal Aid Higher Crime
MOJ,LAA,08/07/2020,Legal Aid Higher Crime,LEGAL AID FUND,TUCKERS SOLICITORS LLP,1976334:155530810,"107,574.07",Legal Aid Higher Crime
MOJ,LAA,08/07/2020,Legal Aid Higher Crime,LEGAL AID FUND,TUCKERS SOLICITORS LLP,1976335:155562703,"89,975.11",Legal Aid Higher Crime
MOJ,LAA,08/07/2020,Legal Aid Higher Crime,LEGAL AID FUND,JOSEPH HILL & CO,1976438:155530558,"34,573.18",Legal Aid Higher Crime
MOJ,LAA,08/07/2020,Legal Aid Higher Crime,LEGAL AID FUND,THE JOHNSON PARTNERSHIP,1976507:155530047,"107,970.13",Legal Aid Higher Crime
MOJ,LAA,08/07/2020,Legal Aid Legal Help,LEGAL AID FUND,CORAM CHILDREN'S LEGAL CENTRE,1976565:155560452,"77,925.29",Legal Aid Legal Help
MOJ,LAA,08/07/2020,Legal Aid Civil Representation,LEGAL AID FUND,BIRNBERG PEIRCE LTD,1976629:152502660,"36,662.71",Legal Aid Civil Representation
MOJ,LAA,08/07/2020,Legal Aid Civil Representation,LEGAL AID FUND,BIRNBERG PEIRCE LTD,1976629:155533984,"27,783.65",Legal Aid Civil Representation
MOJ,LAA,08/07/2020,Legal Aid Civil Representation,LEGAL AID FUND,BIRNBERG PEIRCE LTD,1976629:155568095,"28,478.49",Legal Aid Civil Representation
MOJ,LAA,08/07/2020,Legal Aid Higher Crime,LEGAL AID FUND,DPP LAW LTD,1976695:155545053,"28,821.44",Legal Aid Higher Crime
MOJ,LAA,08/07/2020,Legal Aid Civil Representation,LEGAL AID FUND,J L LAW LIMITED,1976723:3000003734770015,"29,242.09",Legal Aid Civil Representation
MOJ,LAA,08/07/2020,Legal Aid Higher Crime,LEGAL AID FUND,IRVINE THANVI NATAS SOLICITORS,1976731:155523143,"35,535.18",Legal Aid Higher Crime
MOJ,LAA,08/07/2020,Legal Aid Civil Representation,LEGAL AID FUND,HOPKINS LAW LTD,1976777:3000004663080006,"29,437.23",Legal Aid Civil Representation
MOJ,LAA,08/07/2020,Legal Aid Higher Crime,LEGAL AID FUND,HOGAN BROWN SOLICITORS,1976813:155565571,"46,972.17",Legal Aid Higher Crime
MOJ,LAA,08/07/2020,Legal Aid Higher Crime,LEGAL AID FUND,FOSSE LAW,1976889:155529756,"83,149.16",Legal Aid Higher Crime
MOJ,LAA,08/07/2020,Legal Aid Higher Crime,LEGAL AID FUND,K A LEGAL PROVIDERS LTD,1976980:155537991,"32,197.07",Legal Aid Higher Crime
MOJ,LAA,08/07/2020,Legal Aid Higher Crime,LEGAL AID FUND,EDWINS SOLICITORS,1976993:155524060,"29,662.14",Legal Aid Higher Crime
MOJ,LAA,08/07/2020,Legal Aid Higher Crime,LEGAL AID FUND,NAVJOT SIDHU,1977071:155538240,"35,412.00",Legal Aid Higher Crime
MOJ,LAA,08/07/2020,Legal Aid Civil Representation,LEGAL AID FUND,DAVID H SOUTHEY QC,1977078:155525911,"39,250.00",Legal Aid Civil Representation
MOJ,LAA,08/07/2020,Legal Aid Civil Representation,LEGAL AID FUND,AMANDA WESTON QC,1977079:155525912,"27,500.00",Legal Aid Civil Representation
MOJ,LAA,08/07/2020,Legal Aid Civil Representation,LEGAL AID FUND,KATE L AKERMAN,1977118:3000003481430028,"35,358.64",Legal Aid Civil Representation
MOJ,LAA,08/07/2020,Legal Aid Civil Representation,LEGAL AID FUND,DAMIAN WOODWARD-CARLTON,1977306:3000004716790024,"37,094.65",Legal Aid Civil Representation
MOJ,LAA,08/07/2020,Legal Aid Civil Representation,LEGAL AID FUND,RICHARD M A HADLEY,1977367:3000002604490028,"53,949.79",Legal Aid Civil Representation
MOJ,LAA,08/07/2020,Legal Aid Civil Representation,LEGAL AID FUND,AIDAN J W VINE QC,1977374:3000002527640051,"36,408.73",Legal Aid Civil Representation
MOJ,LAA,08/07/2020,Legal Aid Civil Representation,LEGAL AID FUND,JULIET L WILLIAMS,1977430:3000003439020020,"67,174.40",Legal Aid Civil Representation
MOJ,LAA,08/07/2020,Legal Aid Higher Crime,LEGAL AID FUND,WARWICK I G ALEESON,1977463:155562431,"26,058.00",Legal Aid Higher Crime
MOJ,LAA,08/07/2020,Legal Aid Civil Representation,LEGAL AID FUND,A & N CARE SOLICITORS,1977847:3000004538120024,"31,854.12",Legal Aid Civil Representation
MOJ,LAA,08/07/2020,Legal Aid Civil Representation,LEGAL AID FUND,A & N CARE SOLICITORS,1977848:3000003964040016,"67,620.35",Legal Aid Civil Representation
MOJ,LAA,08/07/2020,Legal Aid Higher Crime,LEGAL AID FUND,HIGHGATE SOLICITORS LTD,1978113:155523121,"42,728.93",Legal Aid Higher Crime
MOJ,LAA,08/07/2020,Legal Aid Higher Crime,LEGAL AID FUND,J D SOLICITORS,1978292:155524057,"41,315.63",Legal Aid Higher Crime
MOJ,LAA,08/07/2020,Legal Aid Higher Crime,LEGAL AID FUND,VIENNA KANG ADVOCATES LTD,1978296:155538361,"40,170.34",Legal Aid Higher Crime
MOJ,LAA,08/07/2020,Legal Aid Higher Crime,LEGAL AID FUND,LEXTON LAW SOLICITORS LTD,1978325:155562924,"89,975.11",Legal Aid Higher Crime
MOJ,LAA,08/07/2020,Legal Aid Higher Crime,LEGAL AID FUND,CLAYTON SOLICITORS,1978336:155562601,"50,258.80",Legal Aid Higher Crime
MOJ,LAA,08/07/2020,Legal Aid Higher Crime,LEGAL AID FUND,LANGFIELD LAW LTD,1978343:155530086,"59,133.79",Legal Aid Higher Crime
MOJ,LAA,08/07/2020,Legal Aid Civil Representation,LEGAL AID FUND,A & N CARE SOLICITORS,1978383:3000005184690009,"55,576.80",Legal Aid Civil Representation
MOJ,LAA,10/07/2020,EXP - MISCELLANEOUS EXPENDITURE - Litigator,Central Funds,MESSRS RAHMAN RAVELLI,M1133526/152264,"25,873.92",Legal fees
MOJ,LAA,10/07/2020,EXP - MISCELLANEOUS EXPENDITURE - Litigator,Central Funds,OSBORN KNIGHT LTD,M1116809/152340,"32,046.86",Legal fees
MOJ,LAA,14/07/2020,EXP - PURCHASE OF GOODS/SERVICES - OTHER - Translation / Interpreting Services,Central Funds,THEBIGWORD INTERPRETING SERVICES LTD,90552806,"421,693.00",Translation and interpreting services
MOJ,LAA,14/07/2020,Legal Aid Civil Representation,LEGAL AID FUND,FITZHUGH GATES,1978709:3000003338320025,"27,971.73",Legal Aid Civil Representation
MOJ,LAA,14/07/2020,Legal Aid Civil Representation,LEGAL AID FUND,NASH & CO SOLICITORS LLP,1978747:3000003533150024,"28,510.20",Legal Aid Civil Representation
MOJ,LAA,14/07/2020,Legal Aid Civil Representation,LEGAL AID FUND,NASH & CO SOLICITORS LLP,1978747:3000003933340037,"31,426.87",Legal Aid Civil Representation
MOJ,LAA,14/07/2020,Legal Aid Civil Representation,LEGAL AID FUND,CAMPBELL HOOPER & CO LLP,1978762:3000003347660031,"35,025.87",Legal Aid Civil Representation
MOJ,LAA,14/07/2020,Legal Aid Civil Representation,LEGAL AID FUND,EDWARDS DUTHIE SHAMASH SOLICITORS,1978772:3000004858000020,"26,944.25",Legal Aid Civil Representation
MOJ,LAA,14/07/2020,Legal Aid Civil Representation,LEGAL AID FUND,PORTER DODSON,1978793:3000006195090010,"30,553.20",Legal Aid Civil Representation
MOJ,LAA,14/07/2020,Legal Aid Civil Representation,LEGAL AID FUND,DOWSE & CO,1978837:3000003808020035,"94,428.29",Legal Aid Civil Representation
MOJ,LAA,14/07/2020,Legal Aid Civil Representation,LEGAL AID FUND,DOWSE & CO,1978837:3000005694690017,"26,839.77",Legal Aid Civil Representation
MOJ,LAA,14/07/2020,Legal Aid Higher Crime,LEGAL AID FUND,B H MOHAMMED,1978870:155583602,"56,928.44",Legal Aid Higher Crime
MOJ,LAA,14/07/2020,Legal Aid Civil Representation,LEGAL AID FUND,GOMER WILLIAMS,1978930:3000004325970037,"50,753.73",Legal Aid Civil Representation
MOJ,LAA,14/07/2020,Legal Aid Higher Crime,LEGAL AID FUND,DE MAIDS SOLICITORS & ADVOCATES,1978966:155570148,"58,417.34",Legal Aid Higher Crime
MOJ,LAA,14/07/2020,Legal Aid Civil Representation,LEGAL AID FUND,WILLIAMSONS SOLICITORS LTD,1979044:3000005407040008,"26,805.60",Legal Aid Civil Representation
MOJ,LAA,14/07/2020,Legal Aid Civil Representation,LEGAL AID FUND,T V EDWARDS LLP,1979067:3000001259380017,"25,630.46",Legal Aid Civil Representation
MOJ,LAA,14/07/2020,Legal Aid Civil Representation,LEGAL AID FUND,T V EDWARDS LLP,1979067:3000005616030018,"39,000.00",Legal Aid Civil Representation
MOJ,LAA,14/07/2020,Legal Aid Civil Representation,LEGAL AID FUND,APPLEBY HOPE & MATTHEWS,1979097:3000003923460020,"32,610.27",Legal Aid Civil Representation
MOJ,LAA,14/07/2020,Legal Aid Civil Representation,LEGAL AID FUND,RUSSELL & RUSSELL SOLICITORS LLP,1979123:3000002397530022,"26,581.18",Legal Aid Civil Representation
MOJ,LAA,14/07/2020,Legal Aid Civil Representation,LEGAL AID FUND,EATONS,1979179:3000003748470014,"36,815.67",Legal Aid Civil Representation
MOJ,LAA,14/07/2020,Legal Aid Civil Representation,LEGAL AID FUND,BHATIA BEST LTD,1979256:3000004126380036,"32,290.64",Legal Aid Civil Representation
MOJ,LAA,14/07/2020,Legal Aid Civil Representation,LEGAL AID FUND,TIMMS SOLICITORS,1979263:3000003941430034,"40,000.06",Legal Aid Civil Representation
MOJ,LAA,14/07/2020,Legal Aid Civil Representation,LEGAL AID FUND,GRIFFITHS ROBERTSON,1979280:3000002939860014,"46,364.14",Legal Aid Civil Representation
MOJ,LAA,14/07/2020,Legal Aid Lower Crime,LEGAL AID FUND,NIGEL WELLER & CO,1979281:155580015,"28,381.13",Legal Aid Lower Crime
MOJ,LAA,14/07/2020,Legal Aid Civil Representation,LEGAL AID FUND,BORNEO MARTELL TURNER COULSTON LLP,1979293:3000004237630017,"26,819.22",Legal Aid Civil Representation
MOJ,LAA,14/07/2020,Legal Aid Civil Representation,LEGAL AID FUND,FRENCH & CO,1979294:155573304,"100,056.39",Legal Aid Civil Representation
MOJ,LAA,14/07/2020,Legal Aid Civil Representation,LEGAL AID FUND,HCB PARK WOODFINE LLP,1979342:3000003007900038,"26,333.47",Legal Aid Civil Representation
MOJ,LAA,14/07/2020,Legal Aid Civil Representation,LEGAL AID FUND,CYGNET FAMILY LAW,1979364:3000004078260006,"27,218.35",Legal Aid Civil Representation
MOJ,LAA,14/07/2020,Legal Aid Higher Crime,LEGAL AID FUND,KAMRANS SOLICITORS,1979418:155570399,"29,664.55",Legal Aid Higher Crime
MOJ,LAA,14/07/2020,Legal Aid Civil Representation,LEGAL AID FUND,B & C SOLICITORS,1979419:3000003359810011,"38,492.32",Legal Aid Civil Representation
MOJ,LAA,14/07/2020,Legal Aid Civil Representation,LEGAL AID FUND,BIRNBERG PEIRCE LTD,1979466:155534220,"83,081.61",Legal Aid Civil Representation
MOJ,LAA,14/07/2020,Legal Aid Civil Representation,LEGAL AID FUND,BIRNBERG PEIRCE LTD,1979466:155603496,"26,010.23",Legal Aid Civil Representation
MOJ,LAA,14/07/2020,Legal Aid Higher Crime,LEGAL AID FUND,MANN & CO SOLICITORS LTD,1979471:155584633,"29,563.20",Legal Aid Higher Crime
MOJ,LAA,14/07/2020,Legal Aid Civil Representation,LEGAL AID FUND,KING STREET SOLICITORS LLP,1979527:3000004208820022,"25,339.83",Legal Aid Civil Representation
MOJ,LAA,14/07/2020,Legal Aid Higher Crime,LEGAL AID FUND,M & M SOLICITORS.,1979627:155570575,"60,135.96",Legal Aid Higher Crime
MOJ,LAA,14/07/2020,Legal Aid Civil Representation,LEGAL AID FUND,SHARRATTS SOLICITORS  LTD,1979637:3000003732430013,"88,823.85",Legal Aid Civil Representation
MOJ,LAA,14/07/2020,Legal Aid Higher Crime,LEGAL AID FUND,SWITALSKI'S SOLICITORS LTD,1979731:155569949,"61,644.23",Legal Aid Higher Crime
MOJ,LAA,14/07/2020,Legal Aid Higher Crime,LEGAL AID FUND,TUCKERS SOLICITORS LLP,1979733:155584033,"59,674.88",Legal Aid Higher Crime
MOJ,LAA,14/07/2020,Legal Aid Higher Crime,LEGAL AID FUND,ASHMANS SOLICITORS LTD,1979818:155570071,"29,664.55",Legal Aid Higher Crime
MOJ,LAA,14/07/2020,Legal Aid Civil Representation,LEGAL AID FUND,GREGORY C ROGERS,1979872:3000003732430011,"105,883.20",Legal Aid Civil Representation
MOJ,LAA,14/07/2020,Legal Aid Higher Crime,LEGAL AID FUND,HARRIS SOLICITORS LTD,1979879:155590936,"26,698.09",Legal Aid Higher Crime
MOJ,LAA,14/07/2020,Legal Aid Civil Representation,LEGAL AID FUND,ELIZABETH ISAACS QC,1979911:3000002939860013,"41,666.40",Legal Aid Civil Representation
MOJ,LAA,14/07/2020,Legal Aid Civil Representation,LEGAL AID FUND,SIMON R A MILLER,1979958:3000003699110018,"34,058.89",Legal Aid Civil Representation
MOJ,LAA,14/07/2020,Legal Aid Higher Crime,LEGAL AID FUND,THOMAS PRICE QC,1979961:155582037,"36,040.01",Legal Aid Higher Crime
MOJ,LAA,14/07/2020,Legal Aid Higher Crime,LEGAL AID FUND,PAUL G HODGKINSON,1980025:155587899,"43,200.00",Legal Aid Higher Crime
MOJ,LAA,14/07/2020,Legal Aid Civil Representation,LEGAL AID FUND,ELIZABETH M CALLAGHAN,1980075:3000005366740015,"29,910.32",Legal Aid Civil Representation
MOJ,LAA,14/07/2020,Legal Aid Higher Crime,LEGAL AID FUND,NICHOLAS COTTER,1980159:155590815,"42,762.00",Legal Aid Higher Crime
MOJ,LAA,14/07/2020,Legal Aid Higher Crime,LEGAL AID FUND,CHLOE FORDHAM,1980233:155580497,"43,200.00",Legal Aid Higher Crime
MOJ,LAA,14/07/2020,Legal Aid Civil Representation,LEGAL AID FUND,ALISON BALL QC,1980287:3000005686190014,"37,681.20",Legal Aid Civil Representation
MOJ,LAA,14/07/2020,Legal Aid Civil Representation,LEGAL AID FUND,JANE E CROWLEY QC,1980289:3000002373890026,"34,386.20",Legal Aid Civil Representation
MOJ,LAA,14/07/2020,Legal Aid Civil Representation,LEGAL AID FUND,JANE E CROWLEY QC,1980289:3000003766840015,"153,090.00",Legal Aid Civil Representation
MOJ,LAA,14/07/2020,Legal Aid Civil Representation,LEGAL AID FUND,FAREHA I CHOUDHURY,1980333:3000005686190013,"29,030.40",Legal Aid Civil Representation
MOJ,LAA,14/07/2020,Legal Aid Civil Representation,LEGAL AID FUND,BASHARAT HUSSAIN,1980384:3000003760140011,"109,598.40",Legal Aid Civil Representation
MOJ,LAA,14/07/2020,Legal Aid Civil Representation,LEGAL AID FUND,VANESSA V MEACHIN QC,1980406:3000004263200014,"38,296.80",Legal Aid Civil Representation
MOJ,LAA,14/07/2020,Legal Aid Civil Representation,LEGAL AID FUND,AIDAN J W VINE QC,1980424:3000003732430012,"70,113.60",Legal Aid Civil Representation
MOJ,LAA,14/07/2020,Legal Aid Higher Crime,LEGAL AID FUND,MOHAMMAD M HOSSAIN,1980574:155590858,"84,084.00",Legal Aid Higher Crime
MOJ,LAA,14/07/2020,Legal Aid Civil Representation,LEGAL AID FUND,GREGORY H DAVIES,1980610:3000005602500009,"41,061.60",Legal Aid Civil Representation
MOJ,LAA,14/07/2020,Legal Aid Civil Representation,LEGAL AID FUND,ALEXANDER GASK,1980658:155534305,"26,657.81",Legal Aid Civil Representation
MOJ,LAA,14/07/2020,Legal Aid Higher Crime,LEGAL AID FUND,ANURAG MOHINDRU,1980781:155602274,"85,080.00",Legal Aid Higher Crime
MOJ,LAA,14/07/2020,Legal Aid Civil Representation,LEGAL AID FUND,SAMANTHA L KING,1980800:3000005532080010,"59,875.20",Legal Aid Civil Representation
MOJ,LAA,14/07/2020,Legal Aid Civil Representation,LEGAL AID FUND,ALISON S GRIEF,1980801:3000004714290032,"37,910.40",Legal Aid Civil Representation
MOJ,LAA,14/07/2020,Legal Aid Higher Crime,LEGAL AID FUND,ANDREW W SMITH,1980858:155580496,"65,280.00",Legal Aid Higher Crime
MOJ,LAA,14/07/2020,Legal Aid Higher Crime,LEGAL AID FUND,BRIAN L ST LOUIS,1980878:155590692,"78,564.00",Legal Aid Higher Crime
MOJ,LAA,14/07/2020,Legal Aid Higher Crime,LEGAL AID FUND,MICHAEL J LAVERY,1980922:155587900,"65,280.00",Legal Aid Higher Crime
MOJ,LAA,14/07/2020,Legal Aid Civil Representation,LEGAL AID FUND,SHAUN SPENCER,1980925:3000003941430036,"32,114.53",Legal Aid Civil Representation
MOJ,LAA,14/07/2020,Legal Aid Civil Representation,LEGAL AID FUND,REEDS SOLICITORS LLP,1981007:3000003699110019,"34,015.87",Legal Aid Civil Representation
MOJ,LAA,14/07/2020,Legal Aid Civil Representation,LEGAL AID FUND,TEMPERLEY TAYLOR LLP,1981079:3000004071740017,"48,004.61",Legal Aid Civil Representation
MOJ,LAA,14/07/2020,Legal Aid Civil Representation,LEGAL AID FUND,OWEN HUW THOMAS,1981189:3000004325970036,"60,264.00",Legal Aid Civil Representation
MOJ,LAA,14/07/2020,Legal Aid Civil Representation,LEGAL AID FUND,SAM MOMTAZ,1981198:3000005956810016,"25,953.30",Legal Aid Civil Representation
MOJ,LAA,14/07/2020,Legal Aid Civil Representation,LEGAL AID FUND,CHERRY J HARDING,1981209:3000004718310017,"26,380.86",Legal Aid Civil Representation
MOJ,LAA,14/07/2020,Legal Aid Higher Crime,LEGAL AID FUND,KATHERINE L GODDARD,1981237:155583946,"28,812.00",Legal Aid Higher Crime
MOJ,LAA,14/07/2020,Legal Aid Civil Representation,LEGAL AID FUND,PAULA RHONE-ADRIEN,1981241:3000004840660013,"30,389.30",Legal Aid Civil Representation
MOJ,LAA,14/07/2020,Legal Aid Civil Representation,LEGAL AID FUND,IRWIN MITCHELL LLP,1981402:3000005348720011,"25,123.91",Legal Aid Civil Representation
MOJ,LAA,14/07/2020,Legal Aid Higher Crime,LEGAL AID FUND,EIRAN K REILLY,1981507:155590895,"35,035.00",Legal Aid Higher Crime
MOJ,LAA,14/07/2020,Legal Aid Higher Crime,LEGAL AID FUND,APPLEBY SHAW LTD,1981572:155569971,"89,975.11",Legal Aid Higher Crime
MOJ,LAA,14/07/2020,Legal Aid Higher Crime,LEGAL AID FUND,HINE SOLICITORS,1981573:155602200,"26,023.66",Legal Aid Higher Crime
MOJ,LAA,14/07/2020,Legal Aid Civil Representation,LEGAL AID FUND,GRAHAME STOWE BATESON,1981581:3000005691450012,"37,889.06",Legal Aid Civil Representation
MOJ,LAA,14/07/2020,Legal Aid Higher Crime,LEGAL AID FUND,HARWOOD SOLICITORS,1981681:155584538,"105,048.54",Legal Aid Higher Crime
MOJ,LAA,14/07/2020,Legal Aid Higher Crime,LEGAL AID FUND,M B LAW LTD,1981965:155583867,"60,310.56",Legal Aid Higher Crime
MOJ,LAA,15/07/2020,Legal Aid Higher Crime,LEGAL AID FUND,PILLAI & JONES LTD,1982418:155606411,"107,970.13",Legal Aid Higher Crime
MOJ,LAA,15/07/2020,Legal Aid Civil Representation,LEGAL AID FUND,SPICKETTS BATTRICK SOLICITORS,1982498:3000004674260033,"66,856.80",Legal Aid Civil Representation
MOJ,LAA,15/07/2020,Legal Aid Civil Representation,LEGAL AID FUND,ANTHONY COLLINS LLP,1982499:3000000344450021,"37,195.63",Legal Aid Civil Representation
MOJ,LAA,15/07/2020,Legal Aid Higher Crime,LEGAL AID FUND,TAIT FARRIER GRAHAM LLP,1982567:155605766,"30,215.58",Legal Aid Higher Crime
MOJ,LAA,15/07/2020,Legal Aid Higher Crime,LEGAL AID FUND,ANDREW STORCH SOLICITORS LTD,1982601:155606293,"27,727.39",Legal Aid Higher Crime
MOJ,LAA,15/07/2020,Legal Aid Civil Representation,LEGAL AID FUND,BIRNBERG PEIRCE LTD,1982747:155609905,"25,155.76",Legal Aid Civil Representation
MOJ,LAA,15/07/2020,Legal Aid Higher Crime,LEGAL AID FUND,KIRWANS,1982794:155605442,"29,664.55",Legal Aid Higher Crime
MOJ,LAA,15/07/2020,Legal Aid Higher Crime,LEGAL AID FUND,MAGUIRES SOLICITORS LTD,1982854:155605939,"44,987.56",Legal Aid Higher Crime
MOJ,LAA,15/07/2020,Legal Aid Higher Crime,LEGAL AID FUND,NATHANIEL D RUDOLF,1982978:155610542,"27,540.00",Legal Aid Higher Crime
MOJ,LAA,15/07/2020,Legal Aid Legal Help,LEGAL AID FUND,SIMPSON MILLAR SOLICITORS LLP,1982988:155609381,"26,465.01",Legal Aid Legal Help
MOJ,LAA,15/07/2020,Legal Aid Legal Help,LEGAL AID FUND,SIMPSON MILLAR SOLICITORS LLP,1982988:155609382,"35,041.29",Legal Aid Legal Help
MOJ,LAA,15/07/2020,Legal Aid Civil Representation,LEGAL AID FUND,HRS FAMILY LAW SOLICITORS LTD,1983007:3000001927780016,"28,694.78",Legal Aid Civil Representation
MOJ,LAA,15/07/2020,Legal Aid Higher Crime,LEGAL AID FUND,CENTRAL CHAMBERS LAW SOLICITORS LTD,1983454:155605541,"29,306.41",Legal Aid Higher Crime
MOJ,LAA,16/07/2020,EXP - PURCHASE OF GOODS/SERVICES - OTHER - Translation / Interpreting Services,Central Funds,CLARION INTERPRETING LTD,64053,"45,580.00",Translation and interpreting services
MOJ,LAA,22/07/2020,Legal Aid Civil Representation,LEGAL AID FUND,CLARE WYRE[623443],1983966:8000000000000683,"64,313.73",Legal Aid Civil Representation
MOJ,LAA,22/07/2020,Legal Aid Civil Representation,LEGAL AID FUND,H E THOMAS & CO,1983982:3000005320750006,"29,154.93",Legal Aid Civil Representation
MOJ,LAA,22/07/2020,Legal Aid Civil Representation,LEGAL AID FUND,DESOR & CO,1984008:3000005096830030,"25,083.98",Legal Aid Civil Representation
MOJ,LAA,22/07/2020,Legal Aid Civil Representation,LEGAL AID FUND,FAHRI JACOB,1984047:3000005442270012,"26,410.69",Legal Aid Civil Representation
MOJ,LAA,22/07/2020,Legal Aid Civil Representation,LEGAL AID FUND,WBW SOLICITORS LLP,1984132:3000001369930039,"59,174.98",Legal Aid Civil Representation
MOJ,LAA,22/07/2020,Legal Aid Civil Representation,LEGAL AID FUND,CMHT SOLICITORS LLP,1984156:3000003297430019,"45,754.46",Legal Aid Civil Representation
MOJ,LAA,22/07/2020,Legal Aid Higher Crime,LEGAL AID FUND,B H MOHAMMED,1984203:155648085,"89,975.11",Legal Aid Higher Crime
MOJ,LAA,22/07/2020,Legal Aid Civil Representation,LEGAL AID FUND,DEVONALDS SOLICITORS,1984222:3000005312290010,"25,184.40",Legal Aid Civil Representation
MOJ,LAA,22/07/2020,Legal Aid Civil Representation,LEGAL AID FUND,JACKSON LEES GROUP LTD,1984312:3000004569640016,"26,067.97",Legal Aid Civil Representation
MOJ,LAA,22/07/2020,Legal Aid Civil Representation,LEGAL AID FUND,CAMERON JONES HUSSELL & HOWE,1984316:3000005396060010,"26,811.36",Legal Aid Civil Representation
MOJ,LAA,22/07/2020,Legal Aid Civil Representation,LEGAL AID FUND,WTB SOLICITORS LLP,1984328:3000004663630013,"25,145.48",Legal Aid Civil Representation
MOJ,LAA,22/07/2020,Legal Aid Higher Crime,LEGAL AID FUND,YATES ARDERN,1984339:155612090,"33,342.31",Legal Aid Higher Crime
MOJ,LAA,22/07/2020,Legal Aid Civil Representation,LEGAL AID FUND,MKB SOLICITORS LLP,1984371:3000004635360010,"38,577.58",Legal Aid Civil Representation
MOJ,LAA,22/07/2020,Legal Aid Civil Representation,LEGAL AID FUND,WARD HADAWAY,1984374:3000004427440014,"26,175.60",Legal Aid Civil Representation
MOJ,LAA,22/07/2020,Legal Aid Civil Representation,LEGAL AID FUND,OXLEY & COWARD SOLICITORS LLP,1984520:3000003799640024,"30,480.79",Legal Aid Civil Representation
MOJ,LAA,22/07/2020,Legal Aid Lower Crime,LEGAL AID FUND,THE JOHNSON PARTNERSHIP,1984557:155621350,"25,164.96",Legal Aid Lower Crime
MOJ,LAA,22/07/2020,Legal Aid Civil Representation,LEGAL AID FUND,BROWN & VAUTIER LTD,1984581:3000004003090012,"38,696.50",Legal Aid Civil Representation
MOJ,LAA,22/07/2020,Legal Aid Civil Representation,LEGAL AID FUND,BRIDGE MCFARLAND,1984583:3000003909070027,"27,188.73",Legal Aid Civil Representation
MOJ,LAA,22/07/2020,Legal Aid Civil Representation,LEGAL AID FUND,SCUTT BEAUMONT SOLICITORS LTD,1984604:3000001184220019,"35,510.85",Legal Aid Civil Representation
MOJ,LAA,22/07/2020,Legal Aid Civil Representation,LEGAL AID FUND,WILKINSON WOODWARD.,1984666:3000004420660021,"34,192.59",Legal Aid Civil Representation
MOJ,LAA,22/07/2020,Legal Aid Civil Representation,LEGAL AID FUND,DAVID BARNEY & CO,1984691:3000004018910021,"26,675.15",Legal Aid Civil Representation
MOJ,LAA,22/07/2020,Legal Aid Higher Crime,LEGAL AID FUND,TOSSWILL & CO,1984729:155626475,"27,675.74",Legal Aid Higher Crime
MOJ,LAA,22/07/2020,Legal Aid Higher Crime,LEGAL AID FUND,CJH SOLICITORS,1984732:155619224,"89,975.11",Legal Aid Higher Crime
MOJ,LAA,22/07/2020,Legal Aid Higher Crime,LEGAL AID FUND,CJH SOLICITORS,1984732:155619269,"80,236.91",Legal Aid Higher Crime
MOJ,LAA,22/07/2020,Legal Aid Civil Representation,LEGAL AID FUND,DUNCAN LEWIS SOLICITORS  LTD,1984742:3000002630030001,"37,818.96",Legal Aid Civil Representation
MOJ,LAA,22/07/2020,Legal Aid Civil Representation,LEGAL AID FUND,DUNCAN LEWIS SOLICITORS  LTD,1984743:155627928,"43,738.36",Legal Aid Civil Representation
MOJ,LAA,22/07/2020,Legal Aid Civil Representation,LEGAL AID FUND,MORRISON SPOWART LTD,1984762:3000005208610010,"26,732.88",Legal Aid Civil Representation
MOJ,LAA,22/07/2020,Legal Aid Civil Representation,LEGAL AID FUND,WALTER & PLASKITT INC LESLIE DODD,1984768:3000003734350013,"27,337.50",Legal Aid Civil Representation
MOJ,LAA,22/07/2020,Legal Aid Higher Crime,LEGAL AID FUND,QAMAR SOLICITORS LLP,1984799:155626503,"35,163.53",Legal Aid Higher Crime
MOJ,LAA,22/07/2020,Legal Aid Civil Representation,LEGAL AID FUND,JOHN DELANEY & CO SOLICITORS,1984842:3000004362540004,"50,238.57",Legal Aid Civil Representation
MOJ,LAA,22/07/2020,Legal Aid Civil Representation,LEGAL AID FUND,LUMB & MACGILL,1984855:3000004085470022,"49,623.45",Legal Aid Civil Representation
MOJ,LAA,22/07/2020,Legal Aid Higher Crime,LEGAL AID FUND,PALMERS CRIMINAL DEFENCE SOLICITORS,1984949:155619738,"127,029.30",Legal Aid Higher Crime
MOJ,LAA,22/07/2020,Legal Aid Civil Representation,LEGAL AID FUND,WILLISCROFT & CO SOLICITORS,1984980:3000002560710046,"25,328.86",Legal Aid Civil Representation
MOJ,LAA,22/07/2020,Legal Aid Civil Representation,LEGAL AID FUND,SWITALSKI'S SOLICITORS LTD,1985021:3000005135020018,"46,436.49",Legal Aid Civil Representation
MOJ,LAA,22/07/2020,Legal Aid Civil Representation,LEGAL AID FUND,PEPPERELLS SOLICITORS,1985051:3000005489080022,"35,384.12",Legal Aid Civil Representation
MOJ,LAA,22/07/2020,Legal Aid Higher Crime,LEGAL AID FUND,MBC SOLICITORS LTD,1985069:155619178,"28,922.93",Legal Aid Higher Crime
MOJ,LAA,22/07/2020,Legal Aid Civil Representation,LEGAL AID FUND,BIRMINGHAM LEGAL LTD,1985090:3000005265680002,"30,001.16",Legal Aid Civil Representation
MOJ,LAA,22/07/2020,Legal Aid Civil Representation,LEGAL AID FUND,STEFANO NUVOLONI QC,1985268:3000003297430020,"53,946.00",Legal Aid Civil Representation
MOJ,LAA,22/07/2020,Legal Aid Civil Representation,LEGAL AID FUND,JUSTIN H W GRAY,1985277:3000003924670004,"42,849.00",Legal Aid Civil Representation
MOJ,LAA,22/07/2020,Legal Aid Civil Representation,LEGAL AID FUND,JULIEN A S FOSTER,1985409:3000005106450030,"25,458.00",Legal Aid Civil Representation
MOJ,LAA,22/07/2020,Legal Aid Civil Representation,LEGAL AID FUND,MANJIT S GILL QC,1985447:155622590,"27,633.33",Legal Aid Civil Representation
MOJ,LAA,22/07/2020,Legal Aid Civil Representation,LEGAL AID FUND,CELESTE IRVINE,1985543:3000004484610007,"27,680.50",Legal Aid Civil Representation
MOJ,LAA,22/07/2020,Legal Aid Higher Crime,LEGAL AID FUND,ALEXIA POWER,1985628:155612164,"42,762.00",Legal Aid Higher Crime
MOJ,LAA,22/07/2020,Legal Aid Civil Representation,LEGAL AID FUND,RICHARD BEDDOE,1985635:3000003233940008,"32,031.64",Legal Aid Civil Representation
MOJ,LAA,22/07/2020,Legal Aid Civil Representation,LEGAL AID FUND,SARAH BRANSON,1985641:3000001911770017,"28,461.06",Legal Aid Civil Representation
MOJ,LAA,22/07/2020,Legal Aid Civil Representation,LEGAL AID FUND,FRANCES R ORCHOVER,1985660:3000004210690038,"25,604.00",Legal Aid Civil Representation
MOJ,LAA,22/07/2020,Legal Aid Civil Representation,LEGAL AID FUND,CLARE L GARNHAM,1985684:3000004085470021,"36,307.86",Legal Aid Civil Representation
MOJ,LAA,22/07/2020,Legal Aid Higher Crime,LEGAL AID FUND,MARK C WYETH QC,1985757:155625747,"82,740.00",Legal Aid Higher Crime
MOJ,LAA,22/07/2020,Legal Aid Higher Crime,LEGAL AID FUND,ROBERT A P WOODCOCK QC,1985851:155612226,"88,260.00",Legal Aid Higher Crime
MOJ,LAA,22/07/2020,Legal Aid Civil Representation,LEGAL AID FUND,LAURA E N DUBINSKY,1985965:155629918,"31,840.20",Legal Aid Civil Representation
MOJ,LAA,22/07/2020,Legal Aid Higher Crime,LEGAL AID FUND,SAMUEL STEIN QC,1986004:155632971,"33,132.00",Legal Aid Higher Crime
MOJ,LAA,22/07/2020,Legal Aid Higher Crime,LEGAL AID FUND,MICHAEL MAGARIAN QC,1986006:155612192,"86,916.00",Legal Aid Higher Crime
MOJ,LAA,22/07/2020,Legal Aid Higher Crime,LEGAL AID FUND,MARK S FORD,1986034:155651772,"85,080.00",Legal Aid Higher Crime
MOJ,LAA,22/07/2020,Legal Aid Civil Representation,LEGAL AID FUND,PHILIP A BOOTH,1986098:3000002299450022,"40,132.80",Legal Aid Civil Representation
MOJ,LAA,22/07/2020,Legal Aid Higher Crime,LEGAL AID FUND,NELSON GUEST & PARTNERS-ADVOCATE,1986305:155612634,"43,458.00",Legal Aid Higher Crime
MOJ,LAA,22/07/2020,Legal Aid Higher Crime,LEGAL AID FUND,TESSA SHROFF,1986407:155612133,"42,042.00",Legal Aid Higher Crime
MOJ,LAA,22/07/2020,Legal Aid Civil Representation,LEGAL AID FUND,DAVID G E EVANS,1986440:3000004674260034,"63,955.55",Legal Aid Civil Representation
MOJ,LAA,22/07/2020,Legal Aid Higher Crime,LEGAL AID FUND,COURTENAY GRIFFITHS QC,1986693:155612160,"84,084.00",Legal Aid Higher Crime
MOJ,LAA,22/07/2020,Legal Aid Civil Representation,LEGAL AID FUND,WILSONS SOLICITORS (UK) LTD,1986755:3000003892350003,"25,635.84",Legal Aid Civil Representation
MOJ,LAA,22/07/2020,Legal Aid Civil Representation,LEGAL AID FUND,DUNCAN LEWIS SOLICITORS  LTD,1986784:3000003897990033,"28,244.44",Legal Aid Civil Representation
MOJ,LAA,22/07/2020,Legal Aid Higher Crime,LEGAL AID FUND,ALEXANDER H GRAY,1986827:155651773,"43,200.00",Legal Aid Higher Crime
MOJ,LAA,22/07/2020,Legal Aid Higher Crime,LEGAL AID FUND,SAHOTA & SAHOTA SOLICITORS,1986834:155632827,"107,970.13",Legal Aid Higher Crime
MOJ,LAA,22/07/2020,Legal Aid Higher Crime,LEGAL AID FUND,RAHMAN RAVELLI SOLICITORS LTD,1987046:155612967,"105,857.75",Legal Aid Higher Crime
MOJ,LAA,22/07/2020,Legal Aid Higher Crime,LEGAL AID FUND,BERKELEY SQUARE SOLICITORS LTD,1987062:155647104,"49,729.07",Legal Aid Higher Crime
MOJ,LAA,22/07/2020,Legal Aid Higher Crime,LEGAL AID FUND,SJ LAW,1987087:155625762,"63,317.09",Legal Aid Higher Crime
MOJ,LAA,22/07/2020,Legal Aid Civil Representation,LEGAL AID FUND,JONES MYERS LTD,1987305:3000005123800011,"29,484.51",Legal Aid Civil Representation
MOJ,LAA,22/07/2020,Legal Aid Civil Representation,LEGAL AID FUND,BEU SOLICITORS,1987339:3000004706290007,"25,227.10",Legal Aid Civil Representation
MOJ,LAA,22/07/2020,Legal Aid Lower Crime,LEGAL AID FUND,WATSON WOODHOUSE LTD,1987576:155621421,"34,631.60",Legal Aid Lower Crime
MOJ,LAA,24/07/2020,EXP - PURCHASE OF GOODS/SERVICES - OTHER PROFESSIONAL SERVICES - LEGAL SERVICES - THIRD PARTY LEGAL COSTS,Legal,ATLEU LTD,LAA-SOP1-OTP-10677,"44,000.00",Professional services 
MOJ,LAA,28/07/2020,EXP - PURCHASE OF GOODS/SERVICES - OTHER PROFESSIONAL SERVICES - LEGAL SERVICES - THIRD PARTY LEGAL COSTS,National Courts Core Team NCT,MARSTON HOLDINGS LTD,40152,"26,939.02",Professional services 
MOJ,LAA,28/07/2020,EXP - PURCHASE OF GOODS/SERVICES - OTHER PROFESSIONAL SERVICES - LEGAL SERVICES - THIRD PARTY LEGAL COSTS,National Courts Core Team NCT,MARSTON HOLDINGS LTD,40151,"48,031.39",Professional services 
MOJ,LAA,29/07/2020,Legal Aid Lower Crime,LEGAL AID FUND,GAMMON PIERCY & GAIGER LLP,1987981:155675669,"39,874.11",Legal Aid Lower Crime
MOJ,LAA,29/07/2020,Legal Aid Lower Crime,LEGAL AID FUND,THOMAS BOYD WHYTE SOLICITORS,1987984:155675382,"26,346.04",Legal Aid Lower Crime
MOJ,LAA,29/07/2020,Legal Aid Lower Crime,LEGAL AID FUND,BLACKFORDS LLP,1987990:155675372,"25,168.85",Legal Aid Lower Crime
MOJ,LAA,29/07/2020,Legal Aid Lower Crime,LEGAL AID FUND,SONN MACMILLAN WALKER LTD,1988006:155674937,"42,900.00",Legal Aid Lower Crime
MOJ,LAA,29/07/2020,Legal Aid Lower Crime,LEGAL AID FUND,MARTIN MURRAY & ASSOCIATES,1988009:155674950,"86,200.00",Legal Aid Lower Crime
MOJ,LAA,29/07/2020,Legal Aid Lower Crime,LEGAL AID FUND,MARTIN MURRAY & ASSOCIATES,1988010:155675095,"27,300.00",Legal Aid Lower Crime
MOJ,LAA,29/07/2020,Legal Aid Higher Crime,LEGAL AID FUND,MOSS & CO SOLICITORS,1988011:155662672,"89,975.11",Legal Aid Higher Crime
MOJ,LAA,29/07/2020,Legal Aid Lower Crime,LEGAL AID FUND,GOMER WILLIAMS,1988049:155675212,"30,692.24",Legal Aid Lower Crime
MOJ,LAA,29/07/2020,Legal Aid Lower Crime,LEGAL AID FUND,POWELL SPENCER AND PARTNERS,1988066:155674942,"33,000.00",Legal Aid Lower Crime
MOJ,LAA,29/07/2020,Legal Aid Lower Crime,LEGAL AID FUND,J D SPICER ZEB,1988067:155675383,"44,250.30",Legal Aid Lower Crime
MOJ,LAA,29/07/2020,Legal Aid Legal Help,LEGAL AID FUND,HODGE JONES & ALLEN SOLICITORS LTD,1988070:155674335,"46,685.09",Legal Aid Legal Help
MOJ,LAA,29/07/2020,Legal Aid Lower Crime,LEGAL AID FUND,HODGE JONES & ALLEN SOLICITORS LTD,1988070:155675425,"63,524.35",Legal Aid Lower Crime
MOJ,LAA,29/07/2020,Legal Aid Civil Representation,LEGAL AID FUND,WATKINS & GUNN,1988077:3000004710450016,"25,538.75",Legal Aid Civil Representation
MOJ,LAA,29/07/2020,Legal Aid Civil Representation,LEGAL AID FUND,WATKINS & GUNN,1988077:3000004739980050,"25,826.15",Legal Aid Civil Representation
MOJ,LAA,29/07/2020,Legal Aid Lower Crime,LEGAL AID FUND,ROSS SOLICITORS LTD,1988130:155675116,"33,300.00",Legal Aid Lower Crime
MOJ,LAA,29/07/2020,Legal Aid Lower Crime,LEGAL AID FUND,MCSORLEY LEWIS LAW LTD,1988139:155675218,"26,302.19",Legal Aid Lower Crime
MOJ,LAA,29/07/2020,Legal Aid Lower Crime,LEGAL AID FUND,STEVENS SOLICITORS,1988175:155675126,"29,600.00",Legal Aid Lower Crime
MOJ,LAA,29/07/2020,Legal Aid Legal Help,LEGAL AID FUND,THOMPSON & CO SOLICITORS LTD,1988186:155674023,"55,200.00",Legal Aid Legal Help
MOJ,LAA,29/07/2020,Legal Aid Legal Help,LEGAL AID FUND,FADIGA & CO LTD,1988187:155674091,"45,000.00",Legal Aid Legal Help
MOJ,LAA,29/07/2020,Legal Aid Lower Crime,LEGAL AID FUND,GOODALL BARNETT JAMES SOLICITORS,1988190:155675077,"34,000.00",Legal Aid Lower Crime
MOJ,LAA,29/07/2020,Legal Aid Legal Help,LEGAL AID FUND,BURKE NIAZI  LTD,1988195:155692839,"98,000.00",Legal Aid Legal Help
MOJ,LAA,29/07/2020,Legal Aid Civil Representation,LEGAL AID FUND,WTB SOLICITORS LLP,1988203:3000003476760022,"28,650.39",Legal Aid Civil Representation
MOJ,LAA,29/07/2020,Legal Aid Lower Crime,LEGAL AID FUND,DE MAIDS SOLICITORS & ADVOCATES,1988221:155674901,"26,000.00",Legal Aid Lower Crime
MOJ,LAA,29/07/2020,Legal Aid Lower Crime,LEGAL AID FUND,WILLIAMSONS SOLICITORS LTD,1988240:155675031,"58,600.00",Legal Aid Lower Crime
MOJ,LAA,29/07/2020,Legal Aid Civil Representation,LEGAL AID FUND,WILLIAMSONS SOLICITORS LTD,1988240:3000004613220018,"36,210.76",Legal Aid Civil Representation
MOJ,LAA,29/07/2020,Legal Aid Legal Help,LEGAL AID FUND,IRWIN MITCHELL LLP,1988255:155674345,"45,519.78",Legal Aid Legal Help
MOJ,LAA,29/07/2020,Legal Aid Civil Representation,LEGAL AID FUND,MKB SOLICITORS LLP,1988299:3000002551410016,"25,973.86",Legal Aid Civil Representation
MOJ,LAA,29/07/2020,Legal Aid Lower Crime,LEGAL AID FUND,CARR & CO,1988329:155675024,"42,300.00",Legal Aid Lower Crime
MOJ,LAA,29/07/2020,Legal Aid Lower Crime,LEGAL AID FUND,METCALFE COPEMAN & PETTEFAR,1988345:155674934,"38,700.00",Legal Aid Lower Crime
MOJ,LAA,29/07/2020,Legal Aid Lower Crime,LEGAL AID FUND,CARTER OSBORNE LTD,1988349:155675260,"93,858.20",Legal Aid Lower Crime
MOJ,LAA,29/07/2020,Legal Aid Civil Representation,LEGAL AID FUND,NELSONS SOLICITORS LTD,1988353:3000002988240010,"25,654.40",Legal Aid Civil Representation
MOJ,LAA,29/07/2020,Legal Aid Lower Crime,LEGAL AID FUND,THE JOHNSON PARTNERSHIP,1988361:155675258,"125,424.18",Legal Aid Lower Crime
MOJ,LAA,29/07/2020,Legal Aid Higher Crime,LEGAL AID FUND,THE JOHNSON PARTNERSHIP,1988361:155693512,"37,868.76",Legal Aid Higher Crime
MOJ,LAA,29/07/2020,Legal Aid Lower Crime,LEGAL AID FUND,THE JOHNSON PARTNERSHIP,1988362:155675261,"25,697.19",Legal Aid Lower Crime
MOJ,LAA,29/07/2020,Legal Aid Lower Crime,LEGAL AID FUND,ALLEN HOOLE LTD,1988380:155675109,"43,100.00",Legal Aid Lower Crime
MOJ,LAA,29/07/2020,Legal Aid Lower Crime,LEGAL AID FUND,BHATIA BEST LTD,1988393:155674905,"67,600.00",Legal Aid Lower Crime
MOJ,LAA,29/07/2020,Legal Aid Civil Representation,LEGAL AID FUND,BHATIA BEST LTD,1988393:3000004495940005,"26,941.99",Legal Aid Civil Representation
MOJ,LAA,29/07/2020,Legal Aid Lower Crime,LEGAL AID FUND,BHATIA BEST LTD,1988394:155674906,"25,200.00",Legal Aid Lower Crime
MOJ,LAA,29/07/2020,Legal Aid Lower Crime,LEGAL AID FUND,BHATIA BEST LTD,1988395:155674908,"27,700.00",Legal Aid Lower Crime
MOJ,LAA,29/07/2020,Legal Aid Lower Crime,LEGAL AID FUND,ROBERTSON'S SOLICITORS,1988405:155675021,"28,900.00",Legal Aid Lower Crime
MOJ,LAA,29/07/2020,Legal Aid Lower Crime,LEGAL AID FUND,PURCELL PARKER LTD,1988427:155675136,"90,000.00",Legal Aid Lower Crime
MOJ,LAA,29/07/2020,Legal Aid Lower Crime,LEGAL AID FUND,DALTON HOLMES GRAY,1988445:155675435,"45,832.69",Legal Aid Lower Crime
MOJ,LAA,29/07/2020,Legal Aid Civil Representation,LEGAL AID FUND,MACKINTOSH LAW,1988450:155691183,"363,567.02",Legal Aid Civil Representation
MOJ,LAA,29/07/2020,Legal Aid Lower Crime,LEGAL AID FUND,T S LAW LTD,1988452:155674960,"28,000.00",Legal Aid Lower Crime
MOJ,LAA,29/07/2020,Legal Aid Higher Crime,LEGAL AID FUND,IMSLAW LTD,1988458:155698490,"36,069.89",Legal Aid Higher Crime
MOJ,LAA,29/07/2020,Legal Aid Lower Crime,LEGAL AID FUND,FORBES SOLICITORS,1988464:155675048,"31,000.00",Legal Aid Lower Crime
MOJ,LAA,29/07/2020,Legal Aid Lower Crime,LEGAL AID FUND,FORBES SOLICITORS,1988465:155675050,"31,000.00",Legal Aid Lower Crime
MOJ,LAA,29/07/2020,Legal Aid Lower Crime,LEGAL AID FUND,NOBLE SOLICITORS,1988473:155675296,"31,625.20",Legal Aid Lower Crime
MOJ,LAA,29/07/2020,Legal Aid Lower Crime,LEGAL AID FUND,SHELLEY & CO,1988474:155675337,"36,866.80",Legal Aid Lower Crime
MOJ,LAA,29/07/2020,Legal Aid Legal Help,LEGAL AID FUND,WILSON SOLICITORS LLP,1988478:155674291,"77,426.21",Legal Aid Legal Help
MOJ,LAA,29/07/2020,Legal Aid Lower Crime,LEGAL AID FUND,DEVONALD GRIFFITHS JOHN,1988503:155674898,"45,000.00",Legal Aid Lower Crime
MOJ,LAA,29/07/2020,Legal Aid Lower Crime,LEGAL AID FUND,USMANI KING LTD,1988548:155675297,"45,840.28",Legal Aid Lower Crime
MOJ,LAA,29/07/2020,Legal Aid Lower Crime,LEGAL AID FUND,SHEPPARDS SOLICITORS LTD,1988555:155675117,"27,700.00",Legal Aid Lower Crime
MOJ,LAA,29/07/2020,Legal Aid Lower Crime,LEGAL AID FUND,BOND JOSEPH,1988557:155675654,"36,087.37",Legal Aid Lower Crime
MOJ,LAA,29/07/2020,Legal Aid Legal Help,LEGAL AID FUND,ALASTAIR BATEMAN & CO,1988560:155674259,"27,118.20",Legal Aid Legal Help
MOJ,LAA,29/07/2020,Legal Aid Lower Crime,LEGAL AID FUND,NEEDHAM POULIER LTD,1988573:155675451,"32,158.86",Legal Aid Lower Crime
MOJ,LAA,29/07/2020,Legal Aid Lower Crime,LEGAL AID FUND,CLARKE KIERNAN LLP,1988575:155675645,"27,619.43",Legal Aid Lower Crime
MOJ,LAA,29/07/2020,Legal Aid Civil Representation,LEGAL AID FUND,MORRISON SPOWART LTD,1988601:3000004719440008,"28,604.39",Legal Aid Civil Representation
MOJ,LAA,29/07/2020,Legal Aid Lower Crime,LEGAL AID FUND,OBW PERERA LTD,1988612:155674933,"29,000.00",Legal Aid Lower Crime
MOJ,LAA,29/07/2020,Legal Aid Lower Crime,LEGAL AID FUND,ABV SOLICITORS,1988634:155674953,"65,000.00",Legal Aid Lower Crime
MOJ,LAA,29/07/2020,Legal Aid Civil Representation,LEGAL AID FUND,CHARMINI RAVINDRAN LAW LTD,1988636:3000004627990030,"27,326.39",Legal Aid Civil Representation
MOJ,LAA,29/07/2020,Legal Aid Higher Crime,LEGAL AID FUND,RUSTEM GUARDIAN SOLICITORS LTD,1988642:155669848,"26,698.09",Legal Aid Higher Crime
MOJ,LAA,29/07/2020,Legal Aid Legal Help,LEGAL AID FUND,BUTLER & CO,1988653:155674172,"25,567.88",Legal Aid Legal Help
MOJ,LAA,29/07/2020,Legal Aid Lower Crime,LEGAL AID FUND,WAINWRIGHT & CUMMINS LLP,1988676:155674976,"27,600.00",Legal Aid Lower Crime
MOJ,LAA,29/07/2020,Legal Aid Higher Crime,LEGAL AID FUND,I B B SOLICITORS,1988677:155669834,"40,773.43",Legal Aid Higher Crime
MOJ,LAA,29/07/2020,Legal Aid Lower Crime,LEGAL AID FUND,I B B SOLICITORS,1988677:155674951,"31,500.00",Legal Aid Lower Crime
MOJ,LAA,29/07/2020,Legal Aid Legal Help,LEGAL AID FUND,WOLTON & CO,1988687:155674143,"29,411.52",Legal Aid Legal Help
MOJ,LAA,29/07/2020,Legal Aid Lower Crime,LEGAL AID FUND,BIRDS SOLICITORS LTD,1988688:155674945,"140,200.00",Legal Aid Lower Crime
MOJ,LAA,29/07/2020,Legal Aid Lower Crime,LEGAL AID FUND,HOWARD & BYRNE SOLICITORS,1988691:155675023,"50,000.00",Legal Aid Lower Crime
MOJ,LAA,29/07/2020,Legal Aid Lower Crime,LEGAL AID FUND,ZMS LEGAL LTD TA ZMS SOLICITORS,1988703:155675252,"29,037.15",Legal Aid Lower Crime
MOJ,LAA,29/07/2020,Legal Aid Lower Crime,LEGAL AID FUND,HASKELL & CO,1988705:155675648,"25,396.41",Legal Aid Lower Crime
MOJ,LAA,29/07/2020,Legal Aid Higher Crime,LEGAL AID FUND,MAGUIRES SOLICITORS LTD,1988710:155655475,"44,987.55",Legal Aid Higher Crime
MOJ,LAA,29/07/2020,Legal Aid Legal Help,LEGAL AID FUND,LAWANA & CO,1988716:155674298,"43,582.11",Legal Aid Legal Help
MOJ,LAA,29/07/2020,Legal Aid Legal Help,LEGAL AID FUND,LEVY & CO SOLICITORS LLP,1988720:155674691,"29,719.08",Legal Aid Legal Help
MOJ,LAA,29/07/2020,Legal Aid Civil Representation,LEGAL AID FUND,THOMPSON & CO SOLICITORS LTD,1988724:3000004717120017,"26,334.89",Legal Aid Civil Representation
MOJ,LAA,29/07/2020,Legal Aid Lower Crime,LEGAL AID FUND,REEVES  & CO SOLICITORS,1988738:155675650,"46,346.54",Legal Aid Lower Crime
MOJ,LAA,29/07/2020,Legal Aid Lower Crime,LEGAL AID FUND,HENNESSY & HAMMUDI,1988765:155675100,"35,000.00",Legal Aid Lower Crime
MOJ,LAA,29/07/2020,Legal Aid Legal Help,LEGAL AID FUND,DONOVAN NEWTON SOLICITORS,1988774:155674440,"55,980.22",Legal Aid Legal Help
MOJ,LAA,29/07/2020,Legal Aid Legal Help,LEGAL AID FUND,GUILE NICHOLAS-INC DONALD GALBRAITH & CO,1988791:155674027,"90,000.00",Legal Aid Legal Help
MOJ,LAA,29/07/2020,Legal Aid Legal Help,LEGAL AID FUND,FOUNTAIN SOLICITORS LTD,1988793:155692826,"91,000.00",Legal Aid Legal Help
MOJ,LAA,29/07/2020,Legal Aid Legal Help,LEGAL AID FUND,FOUNTAIN SOLICITORS LTD,1988793:155692827,"30,300.00",Legal Aid Legal Help
MOJ,LAA,29/07/2020,Legal Aid Lower Crime,LEGAL AID FUND,LAWTONS SOLICITORS LTD,1988799:155675162,"35,500.00",Legal Aid Lower Crime
MOJ,LAA,29/07/2020,Legal Aid Lower Crime,LEGAL AID FUND,NOBLE SOLICITORS,1988818:155675826,"55,225.61",Legal Aid Lower Crime
MOJ,LAA,29/07/2020,Legal Aid Lower Crime,LEGAL AID FUND,WANNOPS LLP,1988819:155675932,"33,425.64",Legal Aid Lower Crime
MOJ,LAA,29/07/2020,Legal Aid Lower Crime,LEGAL AID FUND,M K LAW SOLICITORS LTD,1988820:155675871,"40,000.00",Legal Aid Lower Crime
MOJ,LAA,29/07/2020,Legal Aid Higher Crime,LEGAL AID FUND,K A LEGAL PROVIDERS LTD,1988825:155699306,"27,925.80",Legal Aid Higher Crime
MOJ,LAA,29/07/2020,Legal Aid Lower Crime,LEGAL AID FUND,HGH CRIMINAL DEFENCE SOLICITORS,1988831:155675850,"29,537.56",Legal Aid Lower Crime
MOJ,LAA,29/07/2020,Legal Aid Higher Crime,LEGAL AID FUND,HARRIS SOLICITORS LTD,1988859:155655206,"29,664.55",Legal Aid Higher Crime
MOJ,LAA,29/07/2020,Legal Aid Lower Crime,LEGAL AID FUND,OLD BAILEY SOLICITORS LTD,1988862:155675860,"37,115.07",Legal Aid Lower Crime
MOJ,LAA,29/07/2020,Legal Aid Lower Crime,LEGAL AID FUND,H P GOWER SOLICITORS,1988887:155675896,"59,977.12",Legal Aid Lower Crime
MOJ,LAA,29/07/2020,Legal Aid Civil Representation,LEGAL AID FUND,ANDREW K BAGCHI QC,1989118:155691365,"138,186.00",Legal Aid Civil Representation
MOJ,LAA,29/07/2020,Legal Aid Civil Representation,LEGAL AID FUND,ANDREW K BAGCHI QC,1989118:3000006208110007,"64,864.80",Legal Aid Civil Representation
MOJ,LAA,29/07/2020,Legal Aid Civil Representation,LEGAL AID FUND,CLAIRE M GIBSON,1989219:3000005085310009,"26,605.80",Legal Aid Civil Representation
MOJ,LAA,29/07/2020,Legal Aid Lower Crime,LEGAL AID FUND,BEN L COOPER,1989312:155666718,"40,221.60",Legal Aid Lower Crime
MOJ,LAA,29/07/2020,Legal Aid Higher Crime,LEGAL AID FUND,ADAM D DAVIS QC,1989336:155692754,"85,080.00",Legal Aid Higher Crime
MOJ,LAA,29/07/2020,Legal Aid Civil Representation,LEGAL AID FUND,ALEXANDER VERDAN QC,1989367:3000005597110011,"48,535.20",Legal Aid Civil Representation
MOJ,LAA,29/07/2020,Legal Aid Civil Representation,LEGAL AID FUND,KATE V BRANIGAN QC,1989368:3000003116530064,"37,422.00",Legal Aid Civil Representation
MOJ,LAA,29/07/2020,Legal Aid Higher Crime,LEGAL AID FUND,PATRICK C UPWARD QC,1989405:155698153,"34,800.00",Legal Aid Higher Crime
MOJ,LAA,29/07/2020,Legal Aid Higher Crime,LEGAL AID FUND,MARK A RHIND,1989431:155691366,"65,280.00",Legal Aid Higher Crime
MOJ,LAA,29/07/2020,Legal Aid Civil Representation,LEGAL AID FUND,SALLY C BRADLEY,1989454:3000003116530065,"45,091.64",Legal Aid Civil Representation
MOJ,LAA,29/07/2020,Legal Aid Lower Crime,LEGAL AID FUND,TAYLOR HALDANE BARLEX LLP,1989467:155675941,"34,342.39",Legal Aid Lower Crime
MOJ,LAA,29/07/2020,Legal Aid Legal Help,LEGAL AID FUND,JACKSON LEES GROUP LTD,1989477:155674702,"54,583.62",Legal Aid Legal Help
MOJ,LAA,29/07/2020,Legal Aid Lower Crime,LEGAL AID FUND,JACKSON LEES GROUP LTD,1989477:155675945,"31,686.81",Legal Aid Lower Crime
MOJ,LAA,29/07/2020,Legal Aid Civil Representation,LEGAL AID FUND,STEPHEN G N S LUE,1989500:3000003618670022,"37,594.10",Legal Aid Civil Representation
MOJ,LAA,29/07/2020,Legal Aid Lower Crime,LEGAL AID FUND,REEDS SOLICITORS LLP,1989530:155675944,"28,202.20",Legal Aid Lower Crime
MOJ,LAA,29/07/2020,Legal Aid Civil Representation,LEGAL AID FUND,RAMSDENS SOLICITORS LLP,1989539:3000003365120019,"28,693.56",Legal Aid Civil Representation
MOJ,LAA,29/07/2020,Legal Aid Higher Crime,LEGAL AID FUND,GERARD P DORAN,1989567:155692256,"43,200.00",Legal Aid Higher Crime
MOJ,LAA,29/07/2020,Legal Aid Legal Help,LEGAL AID FUND,FISHER JONES GREENWOOD LLP,1989672:155674654,"32,586.89",Legal Aid Legal Help
MOJ,LAA,29/07/2020,Legal Aid Civil Representation,LEGAL AID FUND,MORECROFTS LLP,1989731:3000004507130023,"27,851.92",Legal Aid Civil Representation
MOJ,LAA,29/07/2020,Legal Aid Legal Help,LEGAL AID FUND,BARNES HARRILD & DYER,1989737:155674648,"26,944.22",Legal Aid Legal Help
MOJ,LAA,29/07/2020,Legal Aid Legal Help,LEGAL AID FUND,VIRGO SOLICITORS LTD,1989740:155674683,"25,641.80",Legal Aid Legal Help
MOJ,LAA,29/07/2020,Legal Aid Legal Help,LEGAL AID FUND,APPLEMAN LEGAL,1989743:155674725,"65,723.53",Legal Aid Legal Help
MOJ,LAA,29/07/2020,Legal Aid Lower Crime,LEGAL AID FUND,BREYDONS SOLICITORS LTD,1989794:155675869,"26,297.81",Legal Aid Lower Crime
MOJ,LAA,29/07/2020,Legal Aid Legal Help,LEGAL AID FUND,CJCH SOLICITORS,1989800:155674728,"25,090.56",Legal Aid Legal Help
MOJ,LAA,29/07/2020,Legal Aid Legal Help,LEGAL AID FUND,GUILE NICHOLAS-INC DONALD GALBRAITH & CO,1989816:155674715,"27,387.08",Legal Aid Legal Help
MOJ,LAA,29/07/2020,Legal Aid Legal Help,LEGAL AID FUND,BISON SOLICITORS LTD,1989828:155692841,"99,000.00",Legal Aid Legal Help
MOJ,LAA,29/07/2020,Legal Aid Legal Help,LEGAL AID FUND,ABBOTSTONE LAW LLP,1989834:155674722,"45,871.97",Legal Aid Legal Help
MOJ,LAA,29/07/2020,Legal Aid Lower Crime,LEGAL AID FUND,PURE LAW CRIMINAL DEFENCE,1989932:155676061,"32,243.37",Legal Aid Lower Crime
MOJ,LAA,29/07/2020,Legal Aid Lower Crime,LEGAL AID FUND,JERMAN SAMUELS & PEARSON LLP,1989937:155675175,"65,000.00",Legal Aid Lower Crime
MOJ,LAA,29/07/2020,Legal Aid Lower Crime,LEGAL AID FUND,REEDS SOLICITORS LLP,1989962:155676194,"55,565.61",Legal Aid Lower Crime
MOJ,LAA,29/07/2020,Legal Aid Lower Crime,LEGAL AID FUND,REEDS SOLICITORS LLP,1989966:155676198,"32,838.00",Legal Aid Lower Crime
MOJ,LAA,29/07/2020,Legal Aid Lower Crime,LEGAL AID FUND,PAUL ROBINSON SOLICITORS LLP,1990013:155676144,"34,305.82",Legal Aid Lower Crime
MOJ,LAA,29/07/2020,Legal Aid Lower Crime,LEGAL AID FUND,J D SOLICITORS,1990020:155676149,"39,935.67",Legal Aid Lower Crime
MOJ,LAA,29/07/2020,Legal Aid Civil Representation,LEGAL AID FUND,ASHLEY LORD,1990046:3000003493810029,"29,160.00",Legal Aid Civil Representation
MOJ,LAA,29/07/2020,Legal Aid Lower Crime,LEGAL AID FUND,PLATTS SOLICITORS LTD,1990165:155676286,"34,321.69",Legal Aid Lower Crime
MOJ,LAA,29/07/2020,Legal Aid Lower Crime,LEGAL AID FUND,LAW24 LTD,1990188:155676284,"30,499.75",Legal Aid Lower Crime
MOJ,LAA,29/07/2020,Legal Aid Legal Help,LEGAL AID FUND,BISON SOLICITORS LTD,1990197:155674779,"49,999.19",Legal Aid Legal Help
MOJ,LAA,29/07/2020,Legal Aid Legal Help,LEGAL AID FUND,AJM SOLICITORS,1990207:155674783,"25,517.52",Legal Aid Legal Help
MOJ,LAA,29/07/2020,Legal Aid Lower Crime,LEGAL AID FUND,EDWARDS DUTHIE SHAMASH SOLICITORS,1990375:155675965,"30,371.95",Legal Aid Lower Crime
MOJ,LAA,29/07/2020,Legal Aid Civil Representation,LEGAL AID FUND,EDWARDS DUTHIE SHAMASH SOLICITORS,1990375:3000002988050029,"29,224.08",Legal Aid Civil Representation
MOJ,LAA,29/07/2020,Legal Aid Civil Representation,LEGAL AID FUND,EDWARDS DUTHIE SHAMASH SOLICITORS,1990375:3000003618670020,"40,409.43",Legal Aid Civil Representation
MOJ,LAA,29/07/2020,Legal Aid Lower Crime,LEGAL AID FUND,ASGHAR & CO SOLICITORS LTD,1990378:155675445,"33,914.82",Legal Aid Lower Crime
MOJ,LAA,29/07/2020,Legal Aid Legal Help,LEGAL AID FUND,SUTOVIC & HARTIGAN,1990379:155674028,"52,000.00",Legal Aid Legal Help
MOJ,LAA,29/07/2020,Legal Aid Legal Help,LEGAL AID FUND,GLEDHILL GILL SOLICITORS,1990387:155674149,"25,860.10",Legal Aid Legal Help
MOJ,LAA,29/07/2020,Legal Aid Lower Crime,LEGAL AID FUND,RENSHAW DERRICK & CO,1990390:155675694,"34,391.60",Legal Aid Lower Crime
MOJ,LAA,29/07/2020,Legal Aid Civil Representation,LEGAL AID FUND,CROSSE & CROSSE SOLICITORS LLP,1990393:3000004316850021,"30,450.25",Legal Aid Civil Representation
MOJ,LAA,29/07/2020,Legal Aid Lower Crime,LEGAL AID FUND,DAVIES & JONES SOLICITORS,1990419:155674900,"25,500.00",Legal Aid Lower Crime
MOJ,LAA,29/07/2020,Legal Aid Legal Help,LEGAL AID FUND,BARNES HARRILD & DYER,1990478:155674312,"31,784.19",Legal Aid Legal Help
MOJ,LAA,29/07/2020,Legal Aid Civil Representation,LEGAL AID FUND,JACKSON WEST SOLICITORS,1990481:3000002769140016,"26,863.78",Legal Aid Civil Representation
MOJ,LAA,29/07/2020,Legal Aid Legal Help,LEGAL AID FUND,SOUTHERNS SOLICITORS LTD,1990533:155674382,"50,016.12",Legal Aid Legal Help
MOJ,LAA,29/07/2020,Legal Aid Lower Crime,LEGAL AID FUND,HORSMAN SOLICITORS LTD,1990535:155675651,"34,010.42",Legal Aid Lower Crime
MOJ,LAA,29/07/2020,Legal Aid Lower Crime,LEGAL AID FUND,STUART MILLER SOLICITORS LTD,1990539:155675426,"60,601.06",Legal Aid Lower Crime
MOJ,LAA,29/07/2020,Legal Aid Lower Crime,LEGAL AID FUND,TUCKERS SOLICITORS LLP,1990541:155674967,"155,000.00",Legal Aid Lower Crime
MOJ,LAA,29/07/2020,Legal Aid Lower Crime,LEGAL AID FUND,TUCKERS SOLICITORS LLP,1990542:155675065,"155,000.00",Legal Aid Lower Crime
MOJ,LAA,29/07/2020,Legal Aid Lower Crime,LEGAL AID FUND,WATSON WOODHOUSE LTD,1990547:155674988,"50,700.00",Legal Aid Lower Crime
MOJ,LAA,29/07/2020,Legal Aid Lower Crime,LEGAL AID FUND,HARRIS CUFFARO & NICHOLS,1990578:155674928,"53,100.00",Legal Aid Lower Crime
MOJ,LAA,29/07/2020,Legal Aid Legal Help,LEGAL AID FUND,T V EDWARDS LLP,1990581:155674021,"26,800.00",Legal Aid Legal Help
MOJ,LAA,29/07/2020,Legal Aid Lower Crime,LEGAL AID FUND,T V EDWARDS LLP,1990581:155674958,"45,000.00",Legal Aid Lower Crime
MOJ,LAA,29/07/2020,Legal Aid Lower Crime,LEGAL AID FUND,LANSBURY WORTHINGTON LTD,1990582:155674936,"35,000.00",Legal Aid Lower Crime
MOJ,LAA,29/07/2020,Legal Aid Lower Crime,LEGAL AID FUND,HOWELLS LLP,1990611:155675013,"39,500.00",Legal Aid Lower Crime
MOJ,LAA,29/07/2020,Legal Aid Lower Crime,LEGAL AID FUND,LAWRENCE & CO SOLICITORS CDS LLP,1990617:155674968,"62,300.00",Legal Aid Lower Crime
MOJ,LAA,29/07/2020,Legal Aid Higher Crime,LEGAL AID FUND,LAWRENCE & CO SOLICITORS CDS LLP,1990617:155698777,"89,975.11",Legal Aid Higher Crime
MOJ,LAA,29/07/2020,Legal Aid Civil Representation,LEGAL AID FUND,ELLIOT MATHER LLP,1990652:3000005059030004,"29,028.91",Legal Aid Civil Representation
MOJ,LAA,29/07/2020,Legal Aid Lower Crime,LEGAL AID FUND,VCW LAW LTD,1990685:155674987,"46,000.00",Legal Aid Lower Crime
MOJ,LAA,29/07/2020,Legal Aid Civil Representation,LEGAL AID FUND,CROCKETT LIMITED TA CROCKETT & CO SOLICITORS,1990690:3000003876090030,"34,566.68",Legal Aid Civil Representation
MOJ,LAA,29/07/2020,Legal Aid Lower Crime,LEGAL AID FUND,COUSINS TYRER SOLICITORS,1990702:155675557,"25,520.02",Legal Aid Lower Crime
MOJ,LAA,29/07/2020,Legal Aid Lower Crime,LEGAL AID FUND,REEDS SOLICITORS LLP,1990712:155675686,"31,624.25",Legal Aid Lower Crime
MOJ,LAA,29/07/2020,Legal Aid Lower Crime,LEGAL AID FUND,RMNJ SOLICITORS ***,1990720:155675464,"61,832.63",Legal Aid Lower Crime
MOJ,LAA,29/07/2020,Legal Aid Civil Representation,LEGAL AID FUND,AVADIS & CO SOLICITORS,1990721:3000004565800039,"53,012.52",Legal Aid Civil Representation
MOJ,LAA,29/07/2020,Legal Aid Legal Help,LEGAL AID FUND,ELDER RAHIMI LIMITED,1990740:155674029,"39,000.00",Legal Aid Legal Help
MOJ,LAA,29/07/2020,Legal Aid Lower Crime,LEGAL AID FUND,BURTON COPELAND LLP,1990743:155675635,"30,297.12",Legal Aid Lower Crime
MOJ,LAA,29/07/2020,Legal Aid Civil Representation,LEGAL AID FUND,RUDLINGS & WAKELAM,1990762:3000004181950017,"33,438.46",Legal Aid Civil Representation
MOJ,LAA,29/07/2020,Legal Aid Civil Representation,LEGAL AID FUND,HEPBURN DELANEY,1990766:3000005199500032,"25,908.91",Legal Aid Civil Representation
MOJ,LAA,29/07/2020,Legal Aid Lower Crime,LEGAL AID FUND,VHS FLETCHERS,1990783:155675264,"33,233.39",Legal Aid Lower Crime
MOJ,LAA,29/07/2020,Legal Aid Lower Crime,LEGAL AID FUND,SHAW GRAHAM KERSH,1990806:155674969,"34,000.00",Legal Aid Lower Crime
MOJ,LAA,29/07/2020,Legal Aid Legal Help,LEGAL AID FUND,DUNCAN LEWIS SOLICITORS  LTD,1990830:155692828,"95,000.00",Legal Aid Legal Help
MOJ,LAA,29/07/2020,Legal Aid Legal Help,LEGAL AID FUND,DUNCAN LEWIS SOLICITORS  LTD,1990830:155692829,"94,000.00",Legal Aid Legal Help
MOJ,LAA,29/07/2020,Legal Aid Legal Help,LEGAL AID FUND,DUNCAN LEWIS SOLICITORS  LTD,1990830:155692831,"93,000.00",Legal Aid Legal Help
MOJ,LAA,29/07/2020,Legal Aid Legal Help,LEGAL AID FUND,DUNCAN LEWIS SOLICITORS  LTD,1990830:155692832,"92,000.00",Legal Aid Legal Help
MOJ,LAA,29/07/2020,Legal Aid Legal Help,LEGAL AID FUND,DUNCAN LEWIS SOLICITORS  LTD,1990830:155692833,"26,000.00",Legal Aid Legal Help
MOJ,LAA,29/07/2020,Legal Aid Lower Crime,LEGAL AID FUND,DUNCAN LEWIS SOLICITORS  LTD,1990831:155674957,"96,600.00",Legal Aid Lower Crime
MOJ,LAA,29/07/2020,Legal Aid Legal Help,LEGAL AID FUND,DUNCAN LEWIS SOLICITORS  LTD,1990831:155692834,"97,000.00",Legal Aid Legal Help
MOJ,LAA,29/07/2020,Legal Aid Legal Help,LEGAL AID FUND,DUNCAN LEWIS SOLICITORS  LTD,1990831:155692835,"96,000.00",Legal Aid Legal Help
MOJ,LAA,29/07/2020,Legal Aid Legal Help,LEGAL AID FUND,DUNCAN LEWIS SOLICITORS  LTD,1990831:155692836,"75,400.00",Legal Aid Legal Help
MOJ,LAA,29/07/2020,Legal Aid Lower Crime,LEGAL AID FUND,COBAINS SOLICITORS,1990838:155675061,"26,000.00",Legal Aid Lower Crime
MOJ,LAA,29/07/2020,Legal Aid Legal Help,LEGAL AID FUND,PETER EDWARDS LAW LTD,1990841:155674018,"41,200.00",Legal Aid Legal Help
MOJ,LAA,29/07/2020,Legal Aid Lower Crime,LEGAL AID FUND,BAILEY NICHOLSON GRAYSON,1990864:155674939,"50,800.00",Legal Aid Lower Crime
MOJ,LAA,29/07/2020,Legal Aid Higher Crime,LEGAL AID FUND,TOSSWILL & CO,1990866:155655959,"56,276.12",Legal Aid Higher Crime
MOJ,LAA,29/07/2020,Legal Aid Higher Crime,LEGAL AID FUND,OLLIERS SOLICITORS LTD,1990869:155703497,"28,390.01",Legal Aid Higher Crime
MOJ,LAA,29/07/2020,Legal Aid Legal Help,LEGAL AID FUND,BINDMANS LLP,1990876:155674336,"47,356.38",Legal Aid Legal Help
MOJ,LAA,29/07/2020,Legal Aid Lower Crime,LEGAL AID FUND,BINDMANS LLP,1990876:155675428,"55,970.25",Legal Aid Lower Crime
MOJ,LAA,29/07/2020,Legal Aid Higher Crime,LEGAL AID FUND,QAMAR SOLICITORS LLP,1990890:155662294,"51,310.63",Legal Aid Higher Crime
MOJ,LAA,29/07/2020,Legal Aid Legal Help,LEGAL AID FUND,THALIWAL & VEJA SOLICITORS,1990920:155674439,"25,416.12",Legal Aid Legal Help
MOJ,LAA,29/07/2020,Legal Aid Lower Crime,LEGAL AID FUND,ABR SOLICITORS,1990923:155675559,"44,792.27",Legal Aid Lower Crime
MOJ,LAA,29/07/2020,Legal Aid Civil Representation,LEGAL AID FUND,ATKINSON & FIRTH,1990924:3000004052810012,"35,971.74",Legal Aid Civil Representation
MOJ,LAA,29/07/2020,Legal Aid Lower Crime,LEGAL AID FUND,MCKENZIES SOLICITORS,1990931:155675288,"27,124.46",Legal Aid Lower Crime
MOJ,LAA,29/07/2020,Legal Aid Lower Crime,LEGAL AID FUND,GWB HARTHILLS LLP,1990935:155675533,"40,237.08",Legal Aid Lower Crime
MOJ,LAA,29/07/2020,Legal Aid Lower Crime,LEGAL AID FUND,SMITH PARTNERSHIP,1990941:155674919,"25,300.00",Legal Aid Lower Crime
MOJ,LAA,29/07/2020,Legal Aid Legal Help,LEGAL AID FUND,OXFORD LAW GROUP LTD,1990947:155674081,"42,000.00",Legal Aid Legal Help
MOJ,LAA,29/07/2020,Legal Aid Legal Help,LEGAL AID FUND,CARTWRIGHT KING LTD,1990948:155674459,"72,978.93",Legal Aid Legal Help
MOJ,LAA,29/07/2020,Legal Aid Lower Crime,LEGAL AID FUND,VYMAN SOLICITORS LTD,1990959:155675642,"30,978.43",Legal Aid Lower Crime
MOJ,LAA,29/07/2020,Legal Aid Civil Representation,LEGAL AID FUND,JOHN FORD SOLICITORS,1990969:155703693,"28,563.21",Legal Aid Civil Representation
MOJ,LAA,29/07/2020,Legal Aid Lower Crime,LEGAL AID FUND,IRVINE THANVI NATAS SOLICITORS,1990987:155675352,"25,243.61",Legal Aid Lower Crime
MOJ,LAA,29/07/2020,Legal Aid Legal Help,LEGAL AID FUND,SWAIN & CO SOLICITORS,1990988:155674076,"25,000.00",Legal Aid Legal Help
MOJ,LAA,29/07/2020,Legal Aid Lower Crime,LEGAL AID FUND,SWAIN & CO SOLICITORS,1990989:155675089,"100,000.00",Legal Aid Lower Crime
MOJ,LAA,29/07/2020,Legal Aid Legal Help,LEGAL AID FUND,ARKRIGHTS SOLICITORS,1990993:155674193,"33,206.96",Legal Aid Legal Help
MOJ,LAA,29/07/2020,Legal Aid Lower Crime,LEGAL AID FUND,CARRINGTONS SOLICITORS,1991012:155675265,"162,949.36",Legal Aid Lower Crime
MOJ,LAA,29/07/2020,Legal Aid Lower Crime,LEGAL AID FUND,EBR ATTRIDGE LLP,1991046:155675362,"30,464.91",Legal Aid Lower Crime
MOJ,LAA,29/07/2020,Legal Aid Lower Crime,LEGAL AID FUND,EBR ATTRIDGE LLP,1991047:155675365,"43,540.47",Legal Aid Lower Crime
MOJ,LAA,29/07/2020,Legal Aid Civil Representation,LEGAL AID FUND,CAMPBELL LAW SOLICITORS,1991050:3000003381800006,"25,136.67",Legal Aid Civil Representation
MOJ,LAA,29/07/2020,Legal Aid Lower Crime,LEGAL AID FUND,BELMORES SOLICITORS LTD,1991065:155675312,"39,995.47",Legal Aid Lower Crime
MOJ,LAA,29/07/2020,Legal Aid Lower Crime,LEGAL AID FUND,CRIMINAL DEFENCE SOLICITORS,1991071:155674970,"31,900.00",Legal Aid Lower Crime
MOJ,LAA,29/07/2020,Legal Aid Lower Crime,LEGAL AID FUND,ROWE SPARKES SOLICITORS LTD,1991074:155675091,"35,000.00",Legal Aid Lower Crime
MOJ,LAA,29/07/2020,Legal Aid Lower Crime,LEGAL AID FUND,LHD SOLICITORS LTD,1991081:155675037,"32,000.00",Legal Aid Lower Crime
MOJ,LAA,29/07/2020,Legal Aid Lower Crime,LEGAL AID FUND,G T STEWART LTD,1991082:155675441,"44,373.79",Legal Aid Lower Crime
MOJ,LAA,29/07/2020,Legal Aid Lower Crime,LEGAL AID FUND,CRIMINAL DEFENCE MILTON KEYNES LTD,1991090:155675092,"28,000.00",Legal Aid Lower Crime
MOJ,LAA,29/07/2020,Legal Aid Lower Crime,LEGAL AID FUND,SANSBURY DOUGLAS,1991100:155675159,"53,000.00",Legal Aid Lower Crime
MOJ,LAA,29/07/2020,Legal Aid Lower Crime,LEGAL AID FUND,THE JOHNSON PARTNERSHIP,1991102:155675807,"28,092.85",Legal Aid Lower Crime
MOJ,LAA,29/07/2020,Legal Aid Lower Crime,LEGAL AID FUND,G T STEWART LTD,1991118:155675859,"48,221.93",Legal Aid Lower Crime
MOJ,LAA,29/07/2020,Legal Aid Lower Crime,LEGAL AID FUND,WESSEX SOLICITORS CHAMBERS,1991152:155675157,"35,800.00",Legal Aid Lower Crime
MOJ,LAA,29/07/2020,Legal Aid Lower Crime,LEGAL AID FUND,LLOYDS PR SOLICITORS,1991161:155675292,"37,802.66",Legal Aid Lower Crime
MOJ,LAA,29/07/2020,Legal Aid Civil Representation,LEGAL AID FUND,GWB HARTHILLS LLP,1991163:3000003798400014,"37,655.44",Legal Aid Civil Representation
MOJ,LAA,29/07/2020,Legal Aid Civil Representation,LEGAL AID FUND,GWB HARTHILLS LLP,1991163:3000004768700053,"38,498.43",Legal Aid Civil Representation
MOJ,LAA,29/07/2020,Legal Aid Lower Crime,LEGAL AID FUND,SUSSEX DEFENCE SOLICITORS,1991167:155675163,"26,500.00",Legal Aid Lower Crime
MOJ,LAA,29/07/2020,Legal Aid Lower Crime,LEGAL AID FUND,WELLS BURCOMBE LLP,1991172:155675291,"25,731.17",Legal Aid Lower Crime
MOJ,LAA,29/07/2020,Legal Aid Lower Crime,LEGAL AID FUND,OSLERS SOLICITORS,1991179:155675322,"28,106.28",Legal Aid Lower Crime
MOJ,LAA,29/07/2020,Legal Aid Civil Representation,LEGAL AID FUND,NATIONAL FAMILY MEDIATION,1991198:155676357,"29,813.40",Legal Aid Civil Representation
MOJ,LAA,29/07/2020,Legal Aid Legal Help,LEGAL AID FUND,LEI DAT & BAIG SOLICITORS LTD,1991213:155674579,"31,214.70",Legal Aid Legal Help
MOJ,LAA,29/07/2020,Legal Aid Legal Help,LEGAL AID FUND,IRIS LAW SOLICITORS,1991234:155674578,"25,492.56",Legal Aid Legal Help
MOJ,LAA,29/07/2020,Legal Aid Lower Crime,LEGAL AID FUND,WELLS BURCOMBE LLP,1991255:155675872,"69,828.78",Legal Aid Lower Crime
MOJ,LAA,29/07/2020,Legal Aid Lower Crime,LEGAL AID FUND,KESAR & CO SOLICITORS,1991264:155675911,"26,432.26",Legal Aid Lower Crime
MOJ,LAA,29/07/2020,Legal Aid Civil Representation,LEGAL AID FUND,BLACKWHITE SOLICITORS LTD,1991271:3000005671990007,"26,576.96",Legal Aid Civil Representation
MOJ,LAA,29/07/2020,Legal Aid Higher Crime,LEGAL AID FUND,NATHANIEL D RUDOLF,1991369:155697772,"27,540.00",Legal Aid Higher Crime
MOJ,LAA,29/07/2020,Legal Aid Higher Crime,LEGAL AID FUND,SIMON CSOKA,1991374:155698921,"54,012.00",Legal Aid Higher Crime
MOJ,LAA,29/07/2020,Legal Aid Higher Crime,LEGAL AID FUND,DANIEL G B PROWSE,1991427:155692755,"43,200.00",Legal Aid Higher Crime
MOJ,LAA,29/07/2020,Legal Aid Civil Representation,LEGAL AID FUND,AYSHEA MEGYERY,1991460:3000004613220019,"58,400.42",Legal Aid Civil Representation
MOJ,LAA,29/07/2020,Legal Aid Civil Representation,LEGAL AID FUND,CATHERINE L HEYWORTH,1991467:3000004932100005,"58,147.20",Legal Aid Civil Representation
MOJ,LAA,29/07/2020,Legal Aid Civil Representation,LEGAL AID FUND,KATY R MORGAN,1991471:3000004665870032,"35,083.80",Legal Aid Civil Representation
MOJ,LAA,29/07/2020,Legal Aid Higher Crime,LEGAL AID FUND,PETER D WRIGHT QC,1991474:155692255,"85,080.00",Legal Aid Higher Crime
MOJ,LAA,29/07/2020,Legal Aid Civil Representation,LEGAL AID FUND,TARA VINDIS,1991481:3000005824860018,"34,214.40",Legal Aid Civil Representation
MOJ,LAA,29/07/2020,Legal Aid Civil Representation,LEGAL AID FUND,TINA G COOK QC,1991489:3000003110610034,"41,983.20",Legal Aid Civil Representation
MOJ,LAA,29/07/2020,Legal Aid Civil Representation,LEGAL AID FUND,KATIE PHILLIPS,1991535:3000003110610031,"44,253.00",Legal Aid Civil Representation
MOJ,LAA,29/07/2020,Legal Aid Civil Representation,LEGAL AID FUND,RHIAN JONES,1991544:3000004932100006,"53,870.40",Legal Aid Civil Representation
MOJ,LAA,29/07/2020,Legal Aid Lower Crime,LEGAL AID FUND,NATIONAL LEGAL SERVICE LTD,1991883:155672838,"25,378.59",Legal Aid Lower Crime
MOJ,LAA,29/07/2020,Legal Aid Legal Help,LEGAL AID FUND,G T STEWART LTD,1991890:155674606,"37,819.28",Legal Aid Legal Help
MOJ,LAA,29/07/2020,Legal Aid Lower Crime,LEGAL AID FUND,M K LAW SOLICITORS LTD,1991900:155676040,"28,500.00",Legal Aid Lower Crime
MOJ,LAA,29/07/2020,Legal Aid Civil Representation,LEGAL AID FUND,REX A HOWLING QC,1991950:3000002299450023,"70,100.40",Legal Aid Civil Representation
MOJ,LAA,29/07/2020,Legal Aid Higher Crime,LEGAL AID FUND,RACHAEL WOODS,1992007:155691367,"43,200.00",Legal Aid Higher Crime
MOJ,LAA,29/07/2020,Legal Aid Lower Crime,LEGAL AID FUND,TUCKERS SOLICITORS LLP,1992065:155675170,"30,000.00",Legal Aid Lower Crime
MOJ,LAA,29/07/2020,Legal Aid Legal Help,LEGAL AID FUND,DUNCAN LEWIS SOLICITORS  LTD,1992080:155674089,"59,300.00",Legal Aid Legal Help
MOJ,LAA,29/07/2020,Legal Aid Lower Crime,LEGAL AID FUND,HILL TWINE SOLICITORS,1992112:155675959,"30,090.24",Legal Aid Lower Crime
MOJ,LAA,29/07/2020,Legal Aid Lower Crime,LEGAL AID FUND,FREEMAN BROWN SOLICITORS LTD,1992117:155675957,"47,110.93",Legal Aid Lower Crime
MOJ,LAA,29/07/2020,Legal Aid Lower Crime,LEGAL AID FUND,NOBLE SOLICITORS,1992122:155676062,"26,199.52",Legal Aid Lower Crime
MOJ,LAA,29/07/2020,Legal Aid Lower Crime,LEGAL AID FUND,REECE THOMAS WATSON LTD,1992126:155676016,"56,801.16",Legal Aid Lower Crime
MOJ,LAA,29/07/2020,Legal Aid Lower Crime,LEGAL AID FUND,INSTALAW,1992183:155676013,"117,077.58",Legal Aid Lower Crime
MOJ,LAA,29/07/2020,Legal Aid Lower Crime,LEGAL AID FUND,HOWARDS & HENRY'S SOLICITORS LTD,1992223:155676096,"28,141.35",Legal Aid Lower Crime
MOJ,LAA,29/07/2020,Legal Aid Legal Help,LEGAL AID FUND,JOHN BLACK SOLICITORS LTD,1992224:155674760,"28,653.15",Legal Aid Legal Help
MOJ,LAA,29/07/2020,Legal Aid Lower Crime,LEGAL AID FUND,HINE SOLICITORS,1992250:155676119,"48,203.73",Legal Aid Lower Crime
MOJ,LAA,29/07/2020,Legal Aid Higher Crime,LEGAL AID FUND,BHANDAL LAW,1992280:155680862,"26,176.32",Legal Aid Higher Crime
MOJ,LAA,29/07/2020,Legal Aid Higher Crime,LEGAL AID FUND,FARLEYS SOLICITORS LLP,1992309:155669617,"59,681.82",Legal Aid Higher Crime
MOJ,LAA,29/07/2020,Legal Aid Lower Crime,LEGAL AID FUND,EVANS HAYES BURNELL SOLICITORS LTD,1992361:155676057,"26,521.89",Legal Aid Lower Crime
MOJ,LAA,29/07/2020,Legal Aid Higher Crime,LEGAL AID FUND,SPERRIN  LAW LTD,1992383:155662881,"56,101.67",Legal Aid Higher Crime
MOJ,LAA,29/07/2020,Legal Aid Higher Crime,LEGAL AID FUND,GSG LAW (LTD),1992385:155662698,"37,296.80",Legal Aid Higher Crime
MOJ,LAA,29/07/2020,Legal Aid Higher Crime,LEGAL AID FUND,LEXTON LAW SOLICITORS LTD,1992388:155655107,"46,234.09",Legal Aid Higher Crime
MOJ,LAA,29/07/2020,Legal Aid Lower Crime,LEGAL AID FUND,GRAHAM & CO SOLICITORS LTD,1992399:155676217,"35,744.94",Legal Aid Lower Crime
MOJ,LAA,29/07/2020,Legal Aid Lower Crime,LEGAL AID FUND,G T STEWART LTD,1992403:155676221,"32,732.75",Legal Aid Lower Crime
MOJ,LAA,29/07/2020,Legal Aid Civil Representation,LEGAL AID FUND,CHILDREN 1ST MEDIATION,1992416:155676379,"25,859.40",Legal Aid Civil Representation
MOJ,LAA,29/07/2020,Legal Aid Legal Help,LEGAL AID FUND,CB LEGAL ADVISORY LTD T/A CB SOLICITORS,1992436:155674092,"28,300.00",Legal Aid Legal Help
MOJ,LAA,29/07/2020,Legal Aid Legal Help,LEGAL AID FUND,STAR LEGAL LTD,1992600:155674879,"31,770.94",Legal Aid Legal Help
MOJ,LAA,29/07/2020,Legal Aid Lower Crime,LEGAL AID FUND,DEVONALD GRIFFITHS JOHN,1992601:155676291,"27,394.10",Legal Aid Lower Crime
MOJ,LAA,29/07/2020,Legal Aid Lower Crime,LEGAL AID FUND,HINDUJA GLOBAL SOLUTIONS UK LTD,1992647:155659934,"322,087.67",Legal Aid Lower Crime
MOJ,LAA,30/07/2020,EXP - PURCHASE OF GOODS/SERVICES - OTHER - Central Funds - Other,Central Funds,MISHCON DE REYA,M1132828/152564,"34,688.35",Court costs
MOJ,LAA,30/07/2020,EXP - PURCHASE OF GOODS/SERVICES - OTHER - Central Funds - Other,Central Funds,DLA PIPER UK LLP,M1137035/152522,"202,754.57",Court costs
